Workbook

Sheet At a glance.
A2: COMMUNICATIONS
A4: Tawanda Makombo
A6: At a glancea
A7: Individuals/adultsb (2021) | B7: 43.1m
A8: — proportion with access to radio (2021) | B8: 0.82
A9: — proportion with access to television (2021) | B9: 0.93
A10: Internet users per 100 people | B10: 74.7
A11: Proportion accessing the Internet using mobile phones (2024) | B11: 0.987
A12: Proportion accessing fixed Internet at home (2023) | B12: 0.145
A13: Proportion accessing the Internet via public WIFi (2023) | B13: 0.08
A14: Highest number of listeners to a radio station (2023) —Ukhozi FM | B14: 7.60m
A15: Highest number of listeners to an English-medium radio station (2023) — Metro FM | B15: 4.70m
A16: People per television set | B16: 4.2
A17: Highest circulation of a daily newspaper (2023) — Die Burger (Afrikaans) | B17: 26110
A18: —proportion of readers | B18: 0.125
A19: Highest number of global subscribers to a social media network (2024) — Facebook | B19: 3.05bn
A20: —users accessing Facebook via mobile devices, global (2020) | B20: 0.983
A21: Highest number of Twitter/X followers of a news website (2024) —News24 | B21: 6.02m
A22: Fixed-line telephone subscriptions per 100 people | B22: 2.2
A23: Cellular phone subscriptions per 100 people | B23: 167.4
A24: Ratio of cellular phones to fixed-line telephones | B24: 76.1 to 1
A25: Highest number of subscribers to a cellular telephone network (2023) —Vodacom | B25: 47.3m
A26: —proportion of total | B26: 0.428
A27: With pre-paid mobile connection | B27: 89.3m
A28: With post-paid mobile connection | B28: 17.5m
A29: Households
A30: —with fixed-line telephone only | B30: 0.05
A31: —with cellular phone only | B31: 0.962
A32: —without a fixed-line | B32: 0.95
A33: —without cellular phone | B33: 0.038
A34: a All data is for 2022 unless otherwise stated in brackets.
A35: b People aged 15 and above.

Sheet BROADCASTING

Sheet HH with TVs&radios.05-21
C2: BROADCASTING
B4: Adults with access to radio and television, 2005-21
C6: Year | D6: Number of adultsa | E6: Radio accessb | F6: Television accessb
C7: 2005 | D7: 30655696 | E7: 0.814 | F7: 0.603
C8: 2006 | D8: 30903002 | E8: 0.817 | F8: 0.615
C9: 2007 | D9: 31109074 | E9: 0.794 | F9: 0.613
C10: 2008 | D10: 31305016 | E10: 0.797 | F10: 0.669
C11: 2009 | D11: 32498063 | E11: 0.799 | F11: 0.67
C12: 2010 | D12: 34019661 | E12: 0.801 | F12: 0.724
C13: 2011 | D13: 34933809 | E13: 0.914 | F13: 0.885
C14: 2012 | D14: 34935454 | E14: 0.926 | F14: 0.915
C15: 2013 | D15: 37214317 | E15: 0.83 | F15: 0.917
C16: 2014 | D16: 37664536 | E16: 0.83 | F16: 0.918 | J16: ,
C17: 2015 | D17: 38258907 | E17: 0.829 | F17: 0.922
C18: 2016 | D18: 38800000 | E18: 0.83 | F18: 0.93
C19: 2017 | D19: 39500000 | E19: 0.88 | F19: 0.95
C20: 2018 | D20: 40100000 | E20: 0.88 | F20: 0.96
C21: 2019 | D21: 40700000 | E21: 0.88 | F21: 0.95
C22: 2020 | D22: 42571395 | E22: 0.82 | F22: 0.93
C23: 2021 | D23: 43099703 | E23: 0.82 | F23: 0.93
C24: 2005-21 | D24: =(D23-D7)/D7 -> 0.4059280533 | E24: =(E23-E7)/E7 -> 0.007371007371 | F24: =(F23-F7)/F7 -> 0.5422885572
B25: Source: Eighty20, All Media and Products Survey (AMPS): Overwhelming and under-mined reasons to love AMPS data, May 2012, p13; AMPS 2013B (January-December 2013), 8 April 2014; AMPS 2014 (July 2013-June 2014), accessed 6 March 2015; AMPS 2015 Individual (June 2014-June 2015), accessed 23 February 2016; Broadcast Research Council of South Africa (BRC), www.brcsa.org.za, RAM 2016 (January-September 2016), accessed 8 March 2017; Establishment Survey: Demographic and Media Consumption Trends, ES Wave 1 Launch Presentation (Jul-Dec 2016), March 2017, pp31, 38; April 2018, pp5 and 15; April 2019, pp5, 33; April 2020, accessed 3 July 2020; www.brcsa.org.za, Nielsen TAMS tv market overview, accessed February 2022; Statistics South Africa (Stats SA), Mid-year population estimates 2020-21 data
B26: a People aged 15 and above.
B27: b Respondents were asked if they had listened to radio or watched television in any seven-day period.
E33: ;

Sheet HH TV and Radio LG
D4: Radio access | E4: Television access
C5: 2005 | D5: 0.814 | E5: 0.603
C6: 2006 | D6: 0.817 | E6: 0.615
C7: 2007 | D7: 0.794 | E7: 0.613
C8: 2008 | D8: 0.797 | E8: 0.669
C9: 2009 | D9: 0.799 | E9: 0.67
C10: 2010 | D10: 0.801 | E10: 0.724
C11: 2011 | D11: 0.914 | E11: 0.885
C12: 2012 | D12: 0.926 | E12: 0.915
C13: 2013 | D13: 0.83 | E13: 0.917
C14: 2014 | D14: 0.83 | E14: 0.918
C15: 2015 | D15: 0.829 | E15: 0.922
C16: 2016 | D16: 0.83 | E16: 0.93
C17: 2017 | D17: 0.88 | E17: 0.95
C18: 2018 | D18: 0.88 | E18: 0.96
C19: 2019 | D19: 0.88 | E19: 0.95
C20: 2020 | D20: 0.82 | E20: 0.93
C21: 2021 | D21: 0.82 | E21: 0.93

Sheet Radio

Sheet All radio stations.2023
B2: Radio
B4: Radio stationsa, 2023
B6: SABCb commercial | C6: Main studioc | D6: Numberd | E6: Proportione
B7: Ukhozi FM (Zulu) | C7: Durban, KwaZulu-Natal | D7: 7596000 | E7: =D7/44278033 -> 0.1715523361
B8: Metro FM | C8: Johannesburg, Gauteng | D8: 4698000 | E8: =D8/44278033 -> 0.1061022742
B9: Umhlobo Wenene FM (Xhosa) | C9: Port Elizabeth, Eastern Cape | D9: 4194000 | E9: =D9/44278033 -> 0.09471965478
B10: Lesedi FM (Sotho) | C10: Bloemfontein, Free State | D10: 3536000 | E10: 0.07985901271
B11: Motsweding FM (Tswana) | C11: Mahikeng, North West | D11: 3106000 | E11: =D11/44278033 -> 0.07014765087
B12: Thobela FM (Pedi) | C12: Polokwane, Limpopo | D12: 2881000 | E12: 0.06506612432
B13: Radio2000 | C13: Johannesburg, Gauteng | D13: 2087000 | E13: =D13/44278033 -> 0.04713398176
B14: Munghana Lonene FM (Tsonga) | C14: Polokwane, Limpopo | D14: 1457000 | E14: 0.03290570744
B15: Ligwalagwala FM (Swati) | C15: Mbombela, Mpumalanga | D15: 1299000 | E15: =D15/44278033 -> 0.02933734658
B16: Radio Sonder Grense (Afrikaans) | C16: Johannesburg, Gauteng | D16: 1283000 | E16: =D16/44278033 -> 0.02897599358
B17: Phalaphala FM (Venda) | C17: Thohoyandou, Limpopo | D17: 1177000 | E17: =D17/44278033 -> 0.02658202997
B18: Ikwekwezi FM (Ndebele) | C18: Johannesburg, Gauteng | D18: 1162000 | E18: 0.02624326153
B19: 5FM | C19: Johannesburg, Gauteng | D19: 888000 | E19: 0.02005509143
B20: Good Hope FM | C20: Cape Town, Western Cape | D20: 708000 | E20: 0.01598987019
B21: SAfm | C21: Johannesburg, Gauteng | D21: 632000 | E21: =D21/44278033 -> 0.01427344345
B22: truFM | C22: East London, Eastern Cape | D22: 252000 | E22: 0.005691309729
B23: Lotus FM | C23: Durban, KwaZulu-Natal | D23: 238000 | E23: 0.005375125855
B24: Non-SABC commercialf
B25: Gagasi FM | C25: Durban, KwaZulu-Natal | D25: 1524000 | E25: 0.03441887312
B26: Jacaranda FM | C26: Johannesburg, Gauteng | D26: 1342000 | E26: 0.03030848276
B27: East Coast Radio | C27: Durban, KwaZulu-Natal | D27: 1169000 | E27: 0.02640135347
B28: 947 | C28: Johannesburg, Gauteng | D28: 1102000 | E28: 0.02488818778
B29: KFM | C29: Cape Town, Western Cape | D29: 1101000 | E29: 0.02486560322
B30: YFM | C30: Johannesburg, Gauteng | D30: 932000 | E30: 0.02104881217
B31: Heart FM | C31: Cape Town, Western Cape | D31: 777000 | E31: =D31/44278033 -> 0.017548205
B32: 702 | C32: Johannesburg, Gauteng | D32: 723000 | E32: =D32/44278033 -> 0.01632863863
B33: Kaya FM | C33: Johannesburg, Gauteng | D33: 684000 | E33: =D33/44278033 -> 0.01544784069
B34: Capricorn FM | C34: Polokwane, Limpopo | D34: 519000 | E34: =D34/44278033 -> 0.01172138789
B35: Algoa FM | C35: Port Elizabeth, Eastern Cape | D35: 364000 | E35: 0.00822078072
B36: Power FM | C36: Johannesburg, Gauteng | D36: 304000 | E36: =D36/44278033 -> 0.006865706975
B37: OFM | C37: Bloemfontein, Free State | D37: 224000 | E37: 0.005058941981
B38: Smile FM | C38: Cape Town, Western Cape | D38: 212000 | E38: =D38/44278033 -> 0.004787927232
B39: Vuma FM | C39: Durban, KwaZulu-Natal | D39: 188000 | E39: 0.004245897734
B40: You FM | C40: Rustenburg, North West | D40: 161000 | E40: 0.003636114549
B41: Cape Talk | C41: Cape Town, Western Cape | D41: 130000 | E41: 0.002935993114
B42: Rise FM | C42: Mbombela, Mpumalanga | D42: 102000 | E42: 0.002303625367
B43: Other | C43: — | D43: 329000 | E43: 0.007430321035
B44: Community
B45: Jozi FM | C45: Soweto, Gauteng | D45: 472000 | E45: 0.01065991346
B46: Izwi LoMzansi FM | C46: Durban, KwaZulu-Natal | D46: 280000 | E46: =D46/44278033 -> 0.006323677477
B47: Radio Zibonele | C47: Strand, Western Cape | D47: 219000 | E47: 0.004946019169
B48: Thetha FM | C48: Johannesburg, Gauteng | D48: 208000 | E48: 0.004697588983
B49: Voice of the Cape | C49: Salt River, Western Cape | D49: 146000 | E49: 0.003297346113
B50: Radio Tygerberg | C50: Cape Town, Western Cape | D50: 121000 | E50: 0.002732732052
B51: CCFm | C51: Muizenberg, Western Cape | D51: 119000 | E51: 0.002687562928
B52: Kasie FM | C52: Pretoria, Gauteng | D52: 110000 | E52: 0.002484301866
B53: Motheo FM | C53: Bloemfontein, Free State | D53: 110000 | E53: =D53/44278033 -> 0.002484301866
B54: Alfred Nzo Community Radio | C54: Mount Ayliff, Eastern Cape | D54: 102000 | E54: 0.002303625367
B55: Mahikeng FM | C55: Mahikeng, North West | D55: 99000 | E55: 0.002235871679
B56: Kurara FM | C56: Kuruman, Northern Cape | D56: 90000 | E56: 0.002032610618
B57: Moretele Community Radio | C57: Pretoria, Gauteng | D57: 87000 | E57: 0.00196485693
B58: Vukani FM | C58: East London, Eastern Cape | D58: 82000 | E58: 0.001851934118
B59: Radio Pretoria | C59: Pretoria, Gauteng | D59: 80000 | E59: 0.001806764993
B60: Grootfm | C60: Pretoria, Gauteng | D60: 76000 | E60: 0.001716426744
B61: Mdantsane FM | C61: Mdantsane, Eastern Cape | D61: 71000 | E61: 0.001603503932
B62: Forte FM | C62: Alice, Eastern Cape | D62: 68000 | E62: 0.001535750244
B63: QwaQwa Radio | C63: Phuthaditjhaba, Free State | D63: 64000 | E63: 0.001445411995
B64: Hindvani FM | C64: Durban, KwaZulu-Natal | D64: 62000 | E64: 0.00140024287
B65: Lekoa FM | C65: Vereeniging, Gauteng | D65: 61000 | E65: 0.001377658307
B66: Emalahleni FM | C66: Emalahleni, Mpumalanga | D66: 59000 | E66: 0.001332489183
B67: Unitra Community Radio | C67: Mthatha, Eastern Cape | D67: 59000 | E67: 0.001332489183
B68: Mams FM | C68: Mamelodi, Gauteng | D68: 57000 | E68: 0.001287320058
B69: Link FM | C69: East London, Eastern Cape | D69: 54000 | E69: 0.001219566371
B70: Rainbow FM | C70: Roodepoort, Gauteng | D70: 49000 | E70: 0.001106643558
B71: Radio KC | C71: Paarl, Western Cape | D71: 43000 | E71: 0.0009711361839
B72: Star FM | C72: Klerksdorp, North West | D72: 43000 | E72: =D72/44278033 -> 0.0009711361839
B73: Highway Radio | C73: Durban, KwaZulu-Natal | D73: 42000 | E73: =D73/44278033 -> 0.0009485516215
B74: Mmabatho FM | C74: Mahikeng, North West | D74: 37000 | E74: =D74/44278033 -> 0.0008356288094
B75: Nkqubela FM | C75: Port Elizabeth, Eastern Cape | D75: 35000 | E75: =D75/44278033 -> 0.0007904596846
B76: Radio Riverside FM | C76: Upington, Northern Cape | D76: 32000 | E76: 0.0007227059974
B77: Radio Teemaneng Stereo | C77: Kimberley, Northern Cape | D77: 30000 | E77: =D77/44278033 -> 0.0006775368725
B78: Bay FM | C78: Port Elizabeth, Eastern Cape | D78: 24000 | E78: =D78/44278033 -> 0.000542029498
B79: Newcastle Community Radio | C79: Newcastle, KwaZulu-Natal | D79: 23000 | E79: =D79/44278033 -> 0.0005194449356
B80: Kofifi FM | C80: Westbury, Gauteng | D80: 22000 | E80: 0.0004968603732
B81: VUT FM | C81: Vanderbijlpark, Gauteng | D81: 22000 | E81: =D81/44278033 -> 0.0004968603732
B82: Radio Rosestad FM | C82: Bloemfontein, Free State | D82: 20000 | E82: 0.0004516912483
B83: East Rand/Oos Rand Stereo FM | C83: Ekurhuleni, Gauteng | D83: 19000 | E83: =D83/44278033 -> 0.0004291066859
B84: Tshwane FM | C84: Pretoria, Gauteng | D84: 19000 | E84: =D84/44278033 -> 0.0004291066859
B85: uMgungundlovu Community Radio | C85: Pietermaritzburg, KwaZulu-Natal | D85: 19000 | E85: =D85/44278033 -> 0.0004291066859
B86: Radio Helderberg | C86: Somerset West, Western Cape | D86: 18000 | E86: 0.0004065221235
B87: Soshanguve Radio | C87: Soshanguve, Gauteng | D87: 18000 | E87: 0.0004065221235
B88: Radio Namakwaland | C88: Vredendal, Western Cape | D88: 17000 | E88: 0.0003839375611
B89: The Voice of Tembisa FM | C89: Tembisa, Gauteng | D89: 14000 | E89: 0.0003161838738
B90: Valley FM | C90: Worcester, Western Cape | D90: 11000 | E90: 0.0002484301866
B91: Izwi Lethemba FM | C91: East London, Eastern Cape | D91: 8000 | E91: 0.0001806764993
B92: The Rock FM | C92: Welkom, Free State | D92: 3000 | E92: 6.775368725e-05
B93: Eden FM | C93: George, Western Cape | D93: 1000 | E93: 2.258456242e-05
B94: Mogale FM | C94: Krugersdorp, Gauteng | D94: 1000 | E94: 2.258456242e-05
B95: Other | C95: — | D95: 4136000 | E95: 0.09340975016
B96: Total adults (aged 15+) | C96: — | D96: 44278033 | E96: =D96/44278033 -> 1
B98: Source: BRC, www.brcsa.org.za, BRC RAM Radio Listening (October 2022-September 2023), accessed 29 May 2024; Statistics South Africa (Stats SA), Country projections by population group, sex and age 2023-2027, accessed 28 July 2024
B99: a All listed radio stations broadcast in English, unless otherwise stated in brackets. Most community radio stations broadcast in multiple languages, including local township dialects.
B100: b South African Broadcasting Corporation.
B101: c Applies largely to stations with a wider reach (such as those of the SABC). Other stations, such as those within specific communities, usually have one studio.
B102: d Listenership numbers are estimates and denote respondents who replied 'I listened to this station in the past seven days.
B103: e CRA calculations. Proportions do not work out to 100% as, presumably, some adults (people aged 15 and above) listen to more than one radio station.
B104: f Only stations with listenership figures above 40 000 are listed.

Sheet Top 10 radio stations.listen.23
B2: Top ten radio stations by average listenership, 2023
B4: Radio stationa | C4: Main studiob | D4: Numberc | E4: Proportiond
B5: Ukhozi FM (Zulu) | C5: Durban, KwaZulu-Natal | D5: 7596000 | E5: 0.172
B6: Metro FM | C6: Johannesburg, Gauteng | D6: 4698000 | E6: 0.106
B7: Umhlobo Wenene FM (Xhosa) | C7: Port Elizabeth, Eastern Cape | D7: 4194000 | E7: 0.095
B8: Lesedi FM (Sotho) | C8: Bloemfontein, Free State | D8: 3536000 | E8: 0.08
B9: Motsweding FM (Tswana) | C9: Mahikeng, North West | D9: 3106000 | E9: 0.07
B10: Thobela FM (Pedi) | C10: Polokwane, Limpopo | D10: 2881000 | E10: 0.065
B11: Radio2000 | C11: Johannesburg, Gauteng | D11: 2087000 | E11: 0.047
B12: Gagasi FM | C12: Durban, KwaZulu-Natal | D12: 1524000 | E12: 0.034
B13: Munghana Lonene FM (Tsonga) | C13: Polokwane, Limpopo | D13: 1457000 | E13: 0.033
B14: Jacaranda FM | C14: Johannesburg, Gauteng | D14: 1342000 | E14: 0.03
B15: Source: BRC, www.brcsa.org.za, BRC RAM Radio Listening (October 2022-September 2023), accessed 29 May 2024; Stats SA, Country projections by population group, sex and age 2023-2027, accessed 28 July 2024
B17: a Listed radio stations broadcast in English unless otherwise stated in brackets.
B18: b Applies largely to stations with a wider reach (such as those of the SABC). Other stations, such as those within specific communities, usually have one studio.
B19: c Refers to adults (people aged 15 and above). The listenership numbers are estimates and denote respondents who replied 'I listened to this station in the past seven days'.
B20: d CRA calculations.

Sheet Listeners by levl of incom 23
B2: Radio listeners by income level, 2023
B4: Income level | C4: Proportion
B5: Low income | C5: 0.366
B6: Medium income | C6: 0.318
B7: High income | C7: 0.316
B8: Source: Statista, www.statista.com, accessed 17 April 2024

Sheet Television

Sheet TV sets by province, 2023
C2: Television
C4: Television sets owned by province, 2023
C6: Province | D6: Number | E6: Proportion of totala | F6: People per television seta
C7: Eastern Cape | D7: 1304000 | E7: =D7/D16 -> 0.08755203438 | F7: 5.012269939
C8: Free State | D8: 810000 | E8: =D8/D16 -> 0.05438431583 | F8: 3.737037037
C9: Gauteng | D9: 4656000 | E9: =D9/D16 -> 0.3126091043 | F9: 3.574742268
C10: KwaZulu-Natal | D10: 2447000 | E10: =D10/D16 -> 0.1642943467 | F10: 4.887617491
C11: Limpopo | D11: 1377000 | E11: =D11/D16 -> 0.09245333691 | F11: 4.526506899
C12: Mpumalanga | D12: 1147000 | E12: =D12/D16 -> 0.07701087686 | F12: 4.305143854
C13: North West | D13: 1015000 | E13: =D13/D16 -> 0.06814824762 | F13: 4.202955665
C14: Northern Cape | D14: 292000 | E14: =D14/D16 -> 0.01960521015 | F14: 4.479452055
C15: Western Cape | D15: 1845000 | E15: =D15/D16 -> 0.1238753861 | F15: 4
C16: South Africa | D16: 14894000 | E16: =SUM(E7:E15) -> 0.9999328589 | F16: 4.2
C17: Source: Stats SA, General Household Survey 2023 Addendum tables, Statistical release P0318, 17 August 2023, Table 17.1, p1; Table 1.1, p1
C18: a CRA calculations.

Sheet TV viewing reach 23
B2: Weekly television news reach in South Africa, 2022-23
B4: Station | C4: 2022a | D4: 2023b
B5: SABC News | C5: 0.53 | D5: 0.52
B6: eNCA | C6: 0.51 | D6: 0.48
B7: BBC News | C7: 0.26 | D7: 0.25 | Y7: Station | Z7: 2022 | AA7: 2023
B8: CNN | C8: 0.26 | D8: 0.24 | Y8: SABC News | Z8: 0.53 | AA8: 0.52
B9: Newzroom Afrika | C9: 0.2 | D9: 0.15 | Y9: eNCA | Z9: 0.51 | AA9: 0.48
B10: Source: Statista, www.statista.com, accessed 9 May 2023; 22 April 2024 | Y10: BBC News | Z10: 0.26 | AA10: 0.25
B11: a As at February 2022. | Y11: CNN | Z11: 0.26 | AA11: 0.24
B12: b As at February 2023. | Y12: Newzroom Afrika | Z12: 0.2 | AA12: 0.15

Sheet PRESS, THE

Sheet Print media

Sheet The Press, 1991-2023
B2: THE PRESS
B4: Print media
B6: Print media publications, 1991-2023
B8: Year | C8: Daily newspapers | D8: Major weeklies | J8: Daily newspapers | K8: Major weeklies
B9: 1991 | C9: 22 | D9: 25 | I9: 1991 | J9: 22 | K9: 25
B10: 2004 | C10: 18 | D10: 25 | I10: 2004 | J10: 18 | K10: 25
B11: 2006 | C11: 20 | D11: 28 | I11: 2006 | J11: 20 | K11: 28
B12: 2008 | C12: 21 | D12: 29 | I12: 2008 | J12: 21 | K12: 29
B13: 2009 | C13: 21 | D13: 27 | I13: 2009 | J13: 21 | K13: 27
B14: 2010 | C14: 21 | D14: 26 | I14: 2010 | J14: 21 | K14: 26
B15: 2011 | C15: 22 | D15: 27 | I15: 2011 | J15: 22 | K15: 27
B16: 2012 | C16: 20 | D16: 26 | I16: 2012 | J16: 20 | K16: 26
B17: 2013 | C17: 22 | D17: 22 | I17: 2013 | J17: 22 | K17: 22
B18: 2014 | C18: 22 | D18: 27 | I18: 2014 | J18: 22 | K18: 27
B19: 2015 | C19: 22 | D19: 23 | I19: 2015 | J19: 22 | K19: 23
B20: 2016 | C20: 22 | D20: 22 | I20: 2016 | J20: 22 | K20: 22
B21: 2017 | C21: 22 | D21: 27 | I21: 2017 | J21: 22 | K21: 27
B22: 2018 | C22: 20 | D22: 27 | I22: 2018 | J22: 20 | K22: 27
B23: 2019 | C23: 19 | D23: 26 | I23: 2019 | J23: 19 | K23: 26
B24: 2021 | C24: 20 | D24: 26 | I24: 2021 | J24: 20 | K24: 26
B25: 2022 | C25: 21 | D25: 30 | I25: 2022 | J25: 21 | K25: 30
B26: 2023 | C26: 20 | D26: 27 | I26: 2023 | J26: 20 | K26: 27
B27: Source: South African Audience Research Foundation (SAARF), www.saarf.co.za, accessed 9 March 2017; AMPS 2014 Individual (July 2013-June 2014), accessed 6 March 2015; AMPS 2013B (January-December 2013), accessed 8 April 2014; Omnicom Media Group (OMD South Africa), South Africa and the SADC Media Facts 2011, 2016, 2017, 2018, 2019, p5; Publisher Research Council (PRC), www.prc.za.com, READ 2021 (Reader audience data), accessed 8 May 2023; Advertising Media Forum (AMF), ABC's, accessed 9 May 2024

Sheet Daily circulation, 2005-23
B2: Circulation of daily newspapers, 2005-23
B4: Newspapera | C4: Headquarters | D4: 2005 | E4: 2017 | F4: 2019 | G4: 2021 | H4: 2022 | I4: 2023 | J4: Change 2005-23
B5: Beeld (Afrikaans) | C5: Johannesburg | D5: 51064 | E5: 35934 | F5: 32797 | G5: 22160 | H5: 20318 | I5: 19014 | J5: =(I5-D5)/D5 -> -0.6276437412
B6: Business Day | C6: Johannesburg | D6: 29559 | E6: 20313 | F6: 18053 | G6: 15297 | H6: 14410 | I6: 13605 | J6: =(I6-D6)/D6 -> -0.5397340911
B7: Cape Argus | C7: Cape Town | D7: 30393 | E7: 27662 | F7: 27245 | G7: 11115 | H7: 10459 | I7: 8571 | J7: -0.717994275
B8: Cape Times | C8: Cape Town | D8: 32371 | E8: 29673 | F8: 29523 | G8: 11855 | H8: 11305 | I8: 9194 | J8: -0.7159803528
B9: Daily Dispatch | C9: East London | D9: 26147 | E9: 17958 | F9: 15468 | G9: 10566 | H9: 10889 | I9: 10091 | J9: -0.6140666233
B10: Daily News | C10: Durban | D10: 26973 | E10: 23508 | F10: 22393 | G10: 9687 | H10: 8918 | I10: 7166 | J10: -0.7343269195
B11: Daily Sun | C11: Johannesburg | D11: 265993 | E11: 143981 | F11: 117220 | G11: 40164 | H11: 28006 | I11: 12616 | J11: -0.9525701804
B12: Diamond Fields Advertiser | C12: Kimberley | D12: 9161 | E12: 7599 | F12: 7113 | G12: N/A | H12: N/A | I12: N/A | J12: —
B13: Die Burger (Afrikaans) | C13: Cape Town | D13: 56145 | E13: 47400 | F13: 39625 | G13: N/A | H13: 26951 | I13: 26110 | J13: =(I13-D13)/D13 -> -0.5349541366
B14: Isolezwe (Zulu) | C14: Durban | D14: 110155 | E14: 79476 | F14: 72495 | G14: 32680 | H14: 27009 | I14: 19022 | J14: =(I14-D14)/D14 -> -0.8273160547
B15: Pretoria News | C15: Pretoria | D15: 8511 | E15: 12532 | F15: 12478 | G15: 2383 | H15: N/A | I15: N/A | J15: —
B16: Son (Afrikaans) | C16: Cape Town | D16: 82579 | E16: 66045 | F16: 55126 | G16: 20588 | H16: 16016 | I16: N/A | J16: —
B17: Sowetan | C17: Johannesburg | D17: 92244 | E17: 71797 | F17: 70737 | G17: 29252 | H17: 24869 | I17: 17873 | J17: =(I17-D17)/D17 -> -0.8062421404
B18: The Citizen | C18: Johannesburg | D18: 57097 | E18: 43694 | F18: 40481 | G18: 27492 | H18: 24455 | I18: 22914 | J18: =(I18-D18)/D18 -> -0.5986829431
B19: The Herald | C19: Port Elizabeth | D19: 20919 | E19: 17067 | F19: 14793 | G19: 10958 | H19: 10380 | I19: 10021 | J19: -0.5209618051
B20: The Mercury | C20: Durban | D20: 27499 | E20: 25432 | F20: 24402 | G20: 11633 | H20: 10990 | I20: 9069 | J20: -0.6702061893
B21: The Star | C21: Johannesburg | D21: 91735 | E21: 74520 | F21: 72010 | G21: 27417 | H21: 27257 | I21: 17834 | J21: -0.8055921949
B22: The Witness | C22: Pietermaritzburg | D22: 16544 | E22: 11641 | F22: 10779 | G22: 7366 | H22: 6405 | I22: 6313 | J22: -0.6184115087
B23: Volksblad (Afrikaans) | C23: Bloemfontein | D23: 18652 | E23: 13906 | F23: 13341 | G23: N/A | H23: N/A | I23: N/A | J23: —
B24: Total | C24: — | D24: =SUM(D5:D23) -> 1053741 | E24: 770138 | F24: 696079 | G24: 290613 | H24: 278637 | I24: 209413 | J24: =(I24-D24)/D24 -> -0.8012671045
B25: Source: Eighty20, www.eighty20.co.za, AMPS 2012B (January-December 2012) Individuals, accessed 14 May 2013; Audit Bureau of Circulations of South Africa (ABC), www.abc.org.za, accessed January to May 2014; ABC, email correspondence, 29 March 2017; ABC, www.abc.org.za, ABC analysis: Q4 2017,accessed 17 April 2018; Bizcommunity.com, www.bizcommunity.com, accessed 11 April 2023; ABC, www.abc.org.za, ABC analysis: Q4 2023, accessed 16 May 2024
B26: a Published in English unless otherwise stated in brackets.
B27: N/A — Not available.

Sheet Weekly mag circulati 2017-23
B2: Circulation of weekly magazines, 2017-23
B4: Magazineab | C4: 2017 | D4: 2018 | E4: 2019 | F4: 2020 | G4: 2021 | H4: 2022 | I4: 2023
B5: DRUM | C5: 37200 | D5: 27288 | E5: 19602 | F5: —d | G5: —d | H5: —d | I5: —d
B6: Move! | C6: 65960 | D6: 53524 | E6: 32811 | F6: —d | G6: —d | H6: —d | I6: —d
B7: YOU | C7: 95359 | D7: 88301 | E7: 83214 | F7: 72762 | G7: 68911 | H7: 53963 | I7: 43123
B8: HUISgenoot (Afrikaans) | C8: 185002 | D8: 174683 | E8: 162307 | F8: 139545 | G8: 129825 | H8: 105296 | I8: 85969
B9: People | C9: 35149 | D9: 29575 | E9: 32303 | F9: —d | G9: —d | H9: —d | I9: —d
B10: Vroue Keur (Afrikaans) | C10: 48829 | D10: 43554 | E10: 38623 | F10: —d | G10: —d | H10: —d | I10: —d
B11: Landbouweekblad (Afrikaans) | C11: 27292 | D11: 22723 | E11: 20692 | F11: 17741 | G11: 12559 | H11: 11162 | I11: 14443
B12: Financial Mail | C12: 13016 | D12: 13910 | E12: 13380 | F12: 11652 | G12: 12759 | H12: 12066 | I12: 14893
B13: Farmer's Weekly | C13: 11334 | D13: 10421 | E13: 9146 | F13: 7337 | G13: 6912 | H13: 6415 | I13: 5825
B14: Finweek | C14: 18209 | D14: 15423 | E14: 14954 | F14: 11572 | G14: —d | H14: —d | I14: —d
B15: Auto Trader | C15: N/A | D15: N/A | E15: N/A | F15: N/A | G15: N/A | H15: N/A | I15: N/A
B16: GRAZIA South Africa | C16: N/A | D16: N/A | E16: N/A | F16: N/A | G16: N/A | H16: N/A | I16: N/A
B17: Kuierc | C17: 94851 | D17: 91964 | E17: 85949 | F17: 78358 | G17: 69226 | H17: 54735 | I17: 48634
B18: TIME | C18: N/A | D18: N/A | E18: N/A | F18: N/A | G18: N/A | H18: N/A | I18: N/A
B19: Tvplusc (English) | C19: 15490 | D19: 11164 | E19: 7100 | F19: 5177 | G19: 3439 | H19: 2323 | I19: N/A
B20: Source: Bizcommunity, www.bizcommunity.com, Magazines ABC Q4 2017-22, accessed 11 April 2023; ABC, www.abc.org.za, ABC analysis: Q4 2023, accessed 16 May 2024
B21: a Published in English unless otherwise stated in brackets.
B22: b Q4 figures.
B23: c Published fortnightly.
B24: d Discontinued.
B26: N/A — Not available.

Sheet Print media reach 22-23
B2: Print media reacha by leading brand in South Africa, 2022-23
B4: Media | C4: 2022b | D4: 2023c
B5: Daily Sun | C5: 0.3 | D5: 0.3
B6: The Sunday Times | C6: 0.24 | D6: 0.23
B7: Regional or local newspaper | C7: 0.17 | D7: 0.15
B8: City Press | C8: 0.17 | D8: 0.13
B9: Sowetan | C9: 0.16 | D9: 0.14 | BF9: Media | BG9: 2022 | BH9: 2023
B10: The Citizen | C10: 0.14 | D10: 0.15 | BF10: Community Newspaper | BG10: 0.13 | BH10: 0.13
B11: Community Newspaper | C11: 0.13 | D11: 0.13 | BF11: The Citizen | BG11: 0.14 | BH11: 0.15
B12: Source: Statista, www.statista.com, accessed 9 May 2023 | BF12: Sowetan | BG12: 0.16 | BH12: 0.14
B13: a Age group between 18-50 | BF13: Regional or local newspaper | BG13: 0.17 | BH13: 0.15
B14: b As at February 2022. | BF14: City Press | BG14: 0.17 | BH14: 0.13
B15: c As at February 2023. | BF15: The Sunday Times | BG15: 0.24 | BH15: 0.23
BF16: Daily Sun | BG16: 0.3 | BH16: 0.3

Sheet Online publications
A1: ONLINE

Sheet Online browsing,24
B2: Online publications
B4: Selected online media sites by unique browsers and page views, 2024
B6: Sites | C6: Monthly unique visitors | D6: Monthly page views
C7: —General news—
B8: News24 | C8: 5480000 | D8: 58100000
B9: IOL | C9: 3792000 | D9: 28950000
B10: Citizen | C10: 3330000 | D10: 14390000
B11: Daily Maverick | C11: 2730000 | D11: 20180000
B12: SuperSport | C12: 2712000 | D12: 19080000
B13: TimesLIVE | C13: 2393000 | D13: 13270000
B14: The South African | C14: 1982000 | D14: 8436000
B15: SowetanLIVE | C15: 1156000 | D15: 5320000
B16: EWN | C16: 992576 | D16: 5354000
B17: eNCA | C17: 900706 | D17: 3254000
B18: Maroela Media | C18: 832944 | D18: 20030000
B19: Netwerk24 | C19: 825174 | D19: 10420000
B20: Mail & Guardian | C20: 796601 | D20: 2621000
B21: Sunday World | C21: 698825 | D21: 4540000
B22: SABC News | C22: 589124 | D22: 1429000
C23: —Business—
B24: Businesses | C24: 2823000 | D24: 14000000
B25: BusinessLIVE | C25: 1377000 | D25: 6689000
B26: Daily Investor | C26: 1210000 | D26: 6278000
B27: Moneyweb | C27: 1018000 | D27: 4771000
B28: Bisnow | C28: 275592 | D28: 576482
C29: —Technology—
B30: MyBroadband | C30: 1884000 | D30: 12070000
B31: TechCentral | C31: 348155 | D31: 880339
B32: ITWeb | C32: 311023 | D32: 851651
B33: Stuff | C33: 83668 | D33: 186891
B34: HTXT | C34: 59112 | D34: 121585
B35: Source: Intermetal, www.sainternetmap.co.za, accessed 13 May 2024

Sheet ALL MEDIA

Sheet Media use by type, 2021
B2: ALL MEDIA
B4: Use of media by type, 2010-21
B6: Media accessedab | C6: 2010 | D6: 2015 | E6: 2020 | F6: 2021
B7: Radio | C7: 0.91 | D7: 0.92 | E7: 0.83 | F7: 0.82
B8: Television | C8: 0.89 | D8: 0.92 | E8: 0.93 | F8: 0.93
B9: Newspaper | C9: 0.48 | D9: 0.44 | E9: 0.38 | F9: 0.29
B10: Magazine | C10: 0.51 | D10: 0.45 | E10: 0.39 | F10: 0.36
B11: Internet | C11: 0.13 | D11: 0.43 | E11: 0.61 | F11: 0.63
B12: Source: www.brcsa.org.za, Nielsen TAMS tv market overview, accessed February 2022
B13: a For newspapers and magazines, the figures represent the number of titles accessed by adults. The same number of reading adults, therefore, might be reading more than one publication. This means that there might be far fewer reading adults than the table suggests. Data for 2010 and 2015 data was obtained from AMPs, and data for 2020 and 2021 was obtained from Fusion.
B14: b People aged 15 and above .

Sheet Top ten SA websites.2022
B2: Top ten South African websitesa, 2022
B4: Rank | C4: Publisher | D4: Category | E4: Uniquebbrowsers in South Africa | F4: Page views
B5: 1 | C5: news24.com | D5: General news | E5: 10136307 | F5: 78253156
B6: 2 | C6: businesstech.co.za | D6: Business news | E6: 5127936 | F6: 16274147
B7: 3 | C7: thesouthafrican.com | D7: General news | E7: 5052924 | F7: 15352477
B8: 4 | C8: timeslive.co.za | D8: General news | E8: 4165594 | F8: 17032391
B9: 5 | C9: ewn.co.za | D9: General news | E9: 2972184 | F9: 14499441
B10: 6 | C10: citizen.co.za | D10: General news | E10: 2947204 | F10: 10447306
B11: 7 | C11: gumtree.co.za | D11: Classifieds | E11: 2625337 | F11: 44051523
B12: 8 | C12: mybroadband.co.za | D12: Technology news | E12: 2565540 | F12: 8309280
B13: 9 | C13: dailymaverick.co.za | D13: General news | E13: 2447664 | F13: 11042351
B14: 10 | C14: businessinsider.co.za | D14: General news | E14: 2382744 | F14: 7450998
B15: Source: IAB South Africa, www.iabsa.net, Narrative report: August 2022, accessed 23 April 2024
B16: a As at August 2022.
B17: b The number of visitors to a website within a specified reporting period (usually 24 hours). The visitors are recorded only once regardless of the number of times they visit a site.

Sheet POSTAL SERVICES

Sheet Post Office branches.23
B2: POSTAL SERVICES
B4: Operational South African Post Office outlets by province, 2023
B6: Province | C6: Post Offices | D6: Postpoints | E6: Transportablesa | F6: Mobilesb | G6: Express | H6: Recognised private agencies | I6: Total | J6: Post office counters | K6: Recognised private operating counters
B7: Eastern Cape | C7: 189 | D7: 1 | E7: 4 | F7: 2 | G7: 0 | H7: 123 | I7: 319 | J7: 569 | K7: 125
B8: Free State | C8: 111 | D8: 8 | E8: 2 | F8: 1 | G8: 1 | H8: 16 | I8: 139 | J8: 275 | K8: 17
B9: Gauteng | C9: 296 | D9: 24 | E9: 1 | F9: 0 | G9: 0 | H9: 7 | I9: 328 | J9: 953 | K9: 8
B10: KwaZulu-Natal | C10: 219 | D10: 10 | E10: 6 | F10: 2 | G10: 0 | H10: 70 | I10: 307 | J10: 785 | K10: 70
B11: Limpopo | C11: 134 | D11: 5 | E11: 1 | F11: 2 | G11: 0 | H11: 117 | I11: 259 | J11: 256 | K11: 118
B12: Mpumalanga | C12: 100 | D12: 7 | E12: 2 | F12: 1 | G12: 0 | H12: 97 | I12: 207 | J12: 236 | K12: 96
B13: North West | C13: 115 | D13: 3 | E13: 1 | F13: 1 | G13: 0 | H13: 88 | I13: 208 | J13: 277 | K13: 88
B14: Northern Cape | C14: 59 | D14: 3 | E14: 1 | F14: 0 | G14: 0 | H14: 67 | I14: 130 | J14: 175 | K14: 67
B15: Western Cape | C15: 169 | D15: 3 | E15: 1 | F15: 0 | G15: 0 | H15: 111 | I15: 284 | J15: 643 | K15: 115
B16: South Africa | C16: 1392 | D16: 64 | E16: 19 | F16: 9 | G16: 1 | H16: 696 | I16: 2181 | J16: 4169 | K16: 704
B17: Source: Post Office South Africa, www.postoffice.co.za, Complete list of post offices, accessed 21 April 2023
B18: a Transportable structures or containers used by the Post Office for various purposes, such as transporting mail, packages, or postal equipment. These could be specialised vehicles, trailers, or containers designed to facilitate the efficient movement of postal materials between different locations or during specific operations.
B19: b Temporary or mobile post office units or kiosks that are set up in different areas to offer postal services, such as mailing, and other related services. These mobile outlets allow the postal service to reach customers in remote or underserved areas, where a permanent post office may not be available.

Sheet Post Office mobile units 27
B2: South African Post Office mobile units and retail postal agencies, 2014/15-2026/27
B4: Year | C4: Number
B5: 2014/15 | C5: 2448
B6: 2015/16 | C6: 2368
B7: 2016/17 | C7: 2222
B8: 2017/18 | C8: 2209
B9: 2018/19 | C9: 2180
B10: 2019/20 | C10: 2120
B11: 2020/21 | C11: 2098
B12: 2021/22 | C12: 1646
B13: 2022/23 | C13: 1554
B14: 2023/24a | C14: 1554
B15: 2024/25b | C15: 1554
B16: 2025/26b | C16: 1554
B17: 2026/27b | C17: 1554
B18: Source: National Treasury, Estimates of national expenditure 2024, Table 30.42, p608
B19: a Projections.
B20: b Medium-Term Expenditure Framework targets.

Sheet TELECOMMUNICATIONS

Sheet Landline+Cellular own.prov.23
B2: TELECOMMUNICATIONS
B4: Fixed-line and cellular phones
B6: Households with a fixed-line and cellular phone by province, 2023
B8: Province | C8: Total households | D8: —Fixed-line telephones — | F8: —Cellular phones—
D9: Have | E9: Do not have | F9: Have | G9: Do not have
B10: Eastern Cape | C10: 1761000 | D10: 42000 | E10: 1718000 | F10: 1630000 | G10: 131000
B11: Free State | C11: 999000 | D11: 52000 | E11: 947000 | F11: 934000 | G11: 65000
B12: Gauteng | C12: 5779000 | D12: 344000 | E12: 5435000 | F12: 5639000 | G12: 140000
B13: KwaZulu-Natal | C13: 3292000 | D13: 219000 | E13: 3072000 | F13: 3191000 | G13: 102000
B14: Limpopo | C14: 1775000 | D14: 64000 | E14: 1711000 | F14: 1734000 | G14: 41000
B15: Mpumalanga | C15: 1493000 | D15: 37000 | E15: 1456000 | F15: 1457000 | G15: 36000
B16: North West | C16: 1390000 | D16: 28000 | E16: 1361000 | F16: 1327000 | G16: 63000
B17: Northern Cape | C17: 380000 | D17: 14000 | E17: 366000 | F17: 341000 | G17: 39000
B18: Western Cape | C18: 2136000 | D18: 151000 | E18: 1986000 | F18: 2027000 | G18: 109000
B19: South Africaa | C19: 19005000 | D19: 951000 | E19: 18052000 | F19: 18279000 | G19: 726000
B20: Source: Stats SA, General Household Survey 2023 Addendum tables, Statistical release P0318, 23 May 2024, Table 8.2, p1; Table 10.2, p1; Table 10.4, p1
B21: a Figures may not add up vertically, owing to rounding.

Sheet HH.land.cell by race &sex.23
B2: Households with a land-line and cellular phone connection by race and sex of household head, 2023
B4: Race and sex of household head | D4: —Fixed-line— | G4: —Cellular—
D5: Yes | E5: No | F5: Totala | G5: Yes | H5: No | I5: Totala
B6: Black | C6: Male | D6: 330000 | E6: 8576000 | F6: 8906000 | G6: 8499000 | H6: 408000 | I6: 8906000
C7: Female | D7: 247000 | E7: 6584000 | F7: 6832000 | G7: 6634000 | H7: 198000 | I7: 6832000
C8: Total | D8: 577000 | E8: 15160000 | F8: 15738000 | G8: 15132000 | H8: 606000 | I8: 15738000
B9: Coloured | C9: Male | D9: 43000 | E9: 657000 | F9: 700000 | G9: 656000 | H9: 44000 | I9: 700000
C10: Female | D10: 32000 | E10: 546000 | F10: 577000 | G10: 526000 | H10: 52000 | I10: 577000
C11: Total | D11: 74000 | E11: 1203000 | F11: 1277000 | G11: 1181000 | H11: 96000 | I11: 1277000
B12: Indian/Asian | C12: Male | D12: 49000 | E12: 261000 | F12: 310000 | G12: 305000 | H12: 5000 | I12: 310000
C13: Female | D13: 18000 | E13: 116000 | F13: 134000 | G13: 130000 | H13: 3000 | I13: 134000
C14: Total | D14: 67000 | E14: 376000 | F14: 444000 | G14: 436000 | H14: 8000 | I14: 444000
B15: White | C15: Male | D15: 171000 | E15: 875000 | F15: 1047000 | G15: 1037000 | H15: 11000 | I15: 1047000
C16: Female | D16: 61000 | E16: 438000 | F16: 499000 | G16: 493000 | H16: 6000 | I16: 499000
C17: Total | D17: 232000 | E17: 1313000 | F17: 1546000 | G17: 1530000 | H17: 17000 | I17: 1546000
B18: Total | C18: Male | D18: 593000 | E18: 10369000 | F18: 10963000 | G18: 10497000 | H18: 467000 | I18: 10963000
C19: Female | D19: 358000 | E19: 7683000 | F19: 8042000 | G19: 7782000 | H19: 260000 | I19: 8042000
C20: Total | D20: 951000 | E20: 18052000 | F20: 19005000 | G20: 18279000 | H20: 726000 | I20: 19005000
B21: Source: Stats Sa, General Household Survey 2023 Addendum tables, Statistical release P0318, 24 May 2024, Table 10.1, p1; Table 10.3, p1
B22: a Figures should add up horizontally but may not, owing to rounding.

Sheet Landline & cell subs.00-22
B2: Fixed-line and cellular phone subscriptions, 2000-22
C4: —Number— | E4: —Number per 100 people—
B5: Year | C5: Fixed-line telephone subscriptions | D5: Cellular phone subscriptions | E5: Fixed-line telephone subscriptions | F5: Cellular phone subscriptions
B6: 2000 | C6: 4961743 | D6: 8339000 | E6: 10.6 | F6: 17.8
B7: 2001 | C7: 4924458 | D7: 10787000 | E7: 10.4 | F7: 22.8
B8: 2002 | C8: 4917000 | D8: 13702000 | E8: 10.3 | F8: 28.7
B9: 2003 | C9: 4910000 | D9: 16860000 | E9: 10.2 | F9: 35
B10: 2004 | C10: 4903000 | D10: 20839000 | E10: 10.1 | F10: 42.9
B11: 2005 | C11: 4896000 | D11: 33959958 | E11: 10 | F11: 69.3
B12: 2006 | C12: 4889000 | D12: 39662000 | E12: 9.9 | F12: 80.1
B13: 2007 | C13: 4882000 | D13: 42300000 | E13: 9.8 | F13: 84.6
B14: 2008 | C14: 4875000 | D14: 45000000 | E14: 9.6 | F14: 89
B15: 2009 | C15: 4868000 | D15: 46436000 | E15: 9.5 | F15: 90.7
B16: 2010 | C16: 4861000 | D16: 50372000 | E16: 9.4 | F16: 97.3
B17: 2011 | C17: 4854000 | D17: 64000000 | E17: 9.3 | F17: 122
B18: 2012 | C18: 4847000 | D18: 68394000 | E18: 9.1 | F18: 128.7
B19: 2013 | C19: 3875582 | D19: 76865278 | E19: 7.2 | F19: 142.7
B20: 2014 | C20: 3647770 | D20: 79280731 | E20: 6.7 | F20: 144.9
B21: 2015 | C21: 4131055 | D21: 87999492 | E21: 7.4 | F21: 157.5
B22: 2016 | C22: 4522850 | D22: 82412880 | E22: 8 | F22: 146.1
B23: 2017 | C23: 4810074 | D23: 88497610 | E23: 8.5 | F23: 156.2
B24: 2018 | C24: 3345440 | D24: 92427958 | E24: 5.8 | F24: 161.2
B25: 2019 | C25: 2024730 | D25: 96972459 | E25: 3.5 | F25: 166.9
B26: 2020 | C26: 2098802 | D26: 95959439 | E26: 3.6 | F26: 163.2
B27: 2021 | C27: 1472191 | D27: 100328005 | E27: 2.5 | F27: 168.9
B28: 2022 | C28: 1309590 | D28: 100260000 | E28: 2.2 | F28: 167.4
B29: 2000-22 | C29: =(C28-C6)/C6 -> -0.7360625087 | D29: =(D28-D6)/D6 -> 11.02302434 | E29: =(E28-E6)/E6 -> -0.7924528302 | F29: =(F28-F6)/F6 -> 8.404494382
B30: Source: International Telecommunications Union (ITU), www.itu.int, Time series by country (2000-2022), accessed 25 April 2024

Sheet Fixed line and cell sub(bc)
D2: Year | E2: Fixed-line telephone subscriptions | F2: Cellular phone subscriptions
D3: 2000 | E3: 10.6 | F3: 17.8
D4: 2001 | E4: 10.4 | F4: 22.8
D5: 2002 | E5: 10.3 | F5: 28.7
D6: 2003 | E6: 10.2 | F6: 35
D7: 2004 | E7: 10.1 | F7: 42.9
D8: 2005 | E8: 10 | F8: 69.3
D9: 2006 | E9: 9.9 | F9: 80.1
D10: 2007 | E10: 9.8 | F10: 84.6
D11: 2008 | E11: 9.6 | F11: 89
D12: 2009 | E12: 9.5 | F12: 90.7
D13: 2010 | E13: 9.4 | F13: 97.3
D14: 2011 | E14: 9.3 | F14: 122
D15: 2012 | E15: 9.1 | F15: 128.7
D16: 2013 | E16: 7.2 | F16: 142.7
D17: 2014 | E17: 6.7 | F17: 144.9
D18: 2015 | E18: 7.4 | F18: 157.5
D19: 2016 | E19: 8 | F19: 146.1
D20: 2017 | E20: 8.5 | F20: 156.2
D21: 2018 | E21: 5.8 | F21: 161.2
D22: 2019 | E22: 3.5 | F22: 166.9
D23: 2020 | E23: 3.6 | F23: 163.2
D24: 2021 | E24: 2.5 | F24: 168.9
D25: 2022 | E25: 2 | F25: 167

Sheet Landline+cell.subs.sel.cou.2022
C2: Access to fixed-line and cellular phones, selected countries, 2022
C4: Country | D4: Fixed-line telephones per 100 people | E4: Cellular phones per 100 people | F4: Ratio of cellular phones to fixed-line telephones
C5: Australia | D5: 24.5 | E5: 109.6 | F5: 4.5 to 1
C6: Botswana | D6: 3.5 | E6: 165.3 | F6: 47.2 to 1
C7: Brazil | D7: 12.7 | E7: 98.9 | F7: 7.8 to 1
C8: Chile | D8: 11.3 | E8: 134.7 | F8: 11.9 to 1
C9: China | D9: 12.6 | E9: 124.1 | F9: 9.8 to 1
C10: Denmark | D10: 12.1 | E10: 127 | F10: 10.5 to 1
C11: Egypt | D11: 10.5 | E11: 92 | F11: 8.8 to 1
C12: France | D12: 58.4 | E12: 118.8 | F12: 2.0 to 1
C13: Germany | D13: 46.3 | E13: 125.2 | F13: 2.7 to 1
C14: Ghana | D14: 1 | E14: 119.6 | F14: 119.6 to 1
C15: Greece | D15: 47 | E15: 109.3 | F15: 2.3 to 1
C16: Hong Kong | D16: 49.1 | E16: 291.9 | F16: 5.9 to 1
C17: India | D17: 1.9 | E17: 80.6 | F17: 42.4 to 1
C18: Indonesia | D18: 3.1 | E18: 124.4 | F18: 40.1 to 1
C19: Ireland | D19: 24.3 | E19: 112.5 | F19: 4.6 to 1
C20: Israel | D20: 39.5 | E20: 152.2 | F20: 3.9 to 1
C21: Italy | D21: 33.7 | E21: 133 | F21: 3.9 to 1
C22: Japan | D22: 48.7 | E22: 170 | F22: 3.5 to 1
C23: Kazakhstan | D23: 14.6 | E23: 129.8 | F23: 8.9 to 1
C24: Lithuania | D24: 9.1 | E24: 139.1 | F24: 15.3 to 1
C25: Mexico | D25: 20.8 | E25: 106.6 | F25: 5.1 to 1
C26: Mozambique | D26: 0.1 | E26: 45.4 | F26: 454.0 to 1
C27: Nigeria | D27: 0 | E27: 101.7 | F27: 0.0 to 1
C28: Pakistan | D28: 1.1 | E28: 81.7 | F28: 74.3 to 1
C29: Philippines | D29: 4.2 | E29: 144 | F29: 34.3 to 1
C30: Poland | D30: 13.1 | E30: 131.9 | F30: 10.1 to 1
C31: Russia | D31: 15.2 | E31: 169.5 | F31: 11.2 to 1
C32: Saudi Arabia | D32: 18.6 | E32: 132.4 | F32: 7.1 to 1
C33: South Africa | D33: 2.2 | E33: 167.4 | F33: 76.1 to 1
C34: Spain | D34: 39.3 | E34: 124.1 | F34: 3.2 to 1
C35: Switzerland | D35: 35.2 | E35: 124.7 | F35: 3.5 to 1
C36: Turkey | D36: 22.3 | E36: 105.8 | F36: 4.7 to 1
C37: Uganda | D37: 0.2 | E37: 70 | F37: 350.0 to 1
C38: United Kingdom | D38: 44.6 | E38: 120.8 | F38: 2.7 to 1
C39: United States | D39: 27.9 | E39: 110.2 | F39: 3.9 to 1
C40: Venezuela | D40: 9.5 | E40: 66.3 | F40: 7.0 to 1
C41: Source: ITU, www.itu.int, Time series by country (2000-2022), accessed 8 May 2024

Sheet Landline+cell.subs.EM.2022
B2: Access to fixed-line and cellular phones, emerging markets, 2022
B4: Country | C4: Fixed-line telephones per 100 people | D4: Cellular phones per 100 people | E4: Ratio of cellular phones to fixed-line telephones
B5: Brazil | C5: 12.7 | D5: 98.9 | E5: 7.8 to 1
B6: Bulgaria | C6: 10.2 | D6: 117.4 | E6: 11.5 to 1
B7: Chile | C7: 11.3 | D7: 134.7 | E7: 11.9 to 1
B8: China | C8: 12.6 | D8: 124.1 | E8: 9.8 to 1
B9: Colombia | C9: 14.6 | D9: 155.8 | E9: 10.7 to 1
B10: Czech Republic | C10: 11.8 | D10: 128.4 | E10: 10.9 to 1
B11: Egypt | C11: 10.5 | D11: 92 | E11: 8.8 to 1
B12: Estonia | C12: 20.1 | D12: 155 | E12: 7.7 to 1
B13: Greece | C13: 47 | D13: 109.3 | E13: 2.3 to 1
B14: Hungary | C14: 28.5 | D14: 102.8 | E14: 3.6 to 1
B15: India | C15: 1.9 | D15: 80.6 | E15: 42.4 to 1
B16: Indonesia | C16: 3.1 | D16: 124.4 | E16: 40.1 to 1
B17: Jordan | C17: 4 | D17: 67.6 | E17: 16.9 to 1
B18: Kuwait | C18: 13.4 | D18: 181 | E18: 13.5 to 1
B19: Latvia | C19: 9.4 | D19: 117.1 | E19: 12.5 to 1
B20: Lithuania | C20: 9.1 | D20: 139.1 | E20: 15.3 to 1
B21: Malaysia | C21: 24.9 | D21: 141.3 | E21: 5.7 to 1
B22: Mauritius | C22: 35.6 | D22: 161.4 | E22: 4.5 to 1
B23: Mexico | C23: 20.8 | D23: 106.6 | E23: 5.1 to 1
B24: Morocco | C24: 7.1 | D24: 141.4 | E24: 19.9 to 1
B25: Oman | C25: 11.4 | D25: 136.8 | E25: 12.0 to 1
B26: Pakistan | C26: 1.1 | D26: 81.7 | E26: 74.3 to 1
B27: Peru | C27: 5.3 | D27: 122 | E27: 23.0 to 1
B28: Philippines | C28: 4.2 | D28: 144 | E28: 34.3 to 1
B29: Poland | C29: 13.1 | D29: 131.9 | E29: 10.1 to 1
B30: Qatar | C30: 19.4 | D30: 174.1 | E30: 9.0 to 1
B31: Romania | C31: 11.3 | D31: 118.1 | E31: 10.5 to 1
B32: Russia | C32: 15.2 | D32: 169.5 | E32: 11.2 to 1
B33: Slovakia | C33: 9.6 | D33: 131.9 | E33: 13.7 to 1
B34: South Africa | C34: 2.2 | D34: 167.4 | E34: 76.1 to 1
B35: Sri Lanka | C35: 11.8 | D35: 158.7 | E35: 13.4 to 1
B36: Taiwan | C36: N/A | D36: N/A | E36: N/A
B37: Thailand | C37: 6.1 | D37: 176.3 | E37: 28.9 to 1
B38: Turkey | C38: 22.3 | D38: 105.8 | E38: 4.7 to 1
B39: United Arab Emirates | C39: 24.2 | D39: 212.2 | E39: 8.8 to 1
B40: Vietnam | C40: 2.4 | D40: 139.9 | E40: 58.3 to 1
B41: Source: ITU, www.itu.int, Time series by country (2000-2022), accessed 8 May 2024
B42: N/A — Not available.

Sheet Landline+cell.subs.Afr.2022
B2: Access to fixed-line and cellular phones, selected African countries, 2022
B4: Country | C4: Fixed-line telephones per 100 people | D4: Cellular phones per 100 people | E4: Ratio of cellular phones to fixed-line telephones
B5: Algeria | C5: 12.4 | D5: 109.2 | E5: 8.8 to 1
B6: Angola | C6: 0.3 | D6: 66.7 | E6: 222.3 to 1
B7: Botswana | C7: 3.5 | D7: 165.3 | E7: 47.2 to 1
B8: Burundi | C8: 0.1 | D8: 58.1 | E8: 581.0 to 1
B9: Cameroon | C9: 3.2 | D9: 88.9 | E9: 27.8 to 1
B10: Central African Republic | C10: N/A | D10: N/A | E10: N/A
B11: Congo (DRC) | C11: N/A | D11: 50.3 | E11: N/A
B12: Congo (Republic) | C12: N/A | D12: 94.6 | E12: N/A
B13: Egypt | C13: 10.5 | D13: 92 | E13: 8.8 to 1
B14: Eritrea | C14: N/A | D14: N/A | E14: N/A
B15: Eswatini | C15: 3.1 | D15: 122.2 | E15: 39.4 to 1
B16: Ethiopia | C16: 0.7 | D16: 57.9 | E16: 82.7 to 1
B17: Ghana | C17: 1 | D17: 119.6 | E17: 119.6 to 1
B18: Ivory Coast | C18: 0.9 | D18: 174 | E18: 193.3 to 1
B19: Kenya | C19: 0.1 | D19: 121.7 | E19: 1 217.0 to 1
B20: Lesotho | C20: 0.3 | D20: 67.5 | E20: 225.0 to 1
B21: Liberia | C21: N/A | D21: N/A | E21: N/A
B22: Libya | C22: 17.9 | D22: 204.6 | E22: 11.4 to 1
B23: Madagascar | C23: 0.1 | D23: 66.6 | E23: 666.0 to 1
B24: Malawi | C24: 0 | D24: 60.1 | E24: N/A
B25: Mauritius | C25: 35.6 | D25: 161.4 | E25: 4.5 to 1
B26: Morocco | C26: 7.1 | D26: 141.4 | E26: 19.9 to 1
B27: Mozambique | C27: 0.1 | D27: 45.4 | E27: 454.0 to 1
B28: Namibia | C28: 3.3 | D28: 113.2 | E28: 34.3 to 1
B29: Nigeria | C29: 0 | D29: 101.7 | E29: 0.0 to 1
B30: Rwanda | C30: 0.1 | D30: 79.9 | E30: 799.0 to 1
B31: Senegal | C31: 1.7 | D31: 120.4 | E31: 70.8 to 1
B32: Somalia | C32: 0.5 | D32: 50.3 | E32: 100.6 to 1
B33: South Africa | C33: 2.2 | D33: 167.4 | E33: 76.1 to 1
B34: Sudan | C34: 0.3 | D34: 74 | E34: 246.7 to 1
B35: Tanzania | C35: 0.1 | D35: 91.9 | E35: 919.0 to 1
B36: Tunisia | C36: 14.5 | D36: 129.3 | E36: 8.9 to 1
B37: Uganda | C37: 0.2 | D37: 70 | E37: 350.0 to 1
B38: Zambia | C38: 0.5 | D38: 99.1 | E38: 198.2 to 1
B39: Zimbabwe | C39: 1.8 | D39: 87.6 | E39: 48.7 to 1
B40: Source: ITU, www.itu.int, Time series by country (2000-2022), accessed 8 May 2024
B41: N/A — Not available.

Sheet Voice traffic.FL+Cell.16.22
B2: Fixed-line voice traffic in minutes, 2016 and 2022
C4: —2016a— | E4: —2022b—
B5: Type of traffic | C5: Number of minutes (billions) | D5: Proportion of total | E5: Number of minutes (billions) | F5: Proportion of total
B6: Local fixed-line to fixed-line | C6: 3.994718204 | D6: =C6/C9 -> 0.3178919339 | E6: 2.1 | F6: =E6/E9 -> 0.1826086957
B7: Long-distance fixed-line to fixed-line | C7: 2.756822474 | D7: =C7/C9 -> 0.2193825904 | E7: 1.7 | F7: =E7/E9 -> 0.147826087
B8: Fixed-line to mobile | C8: 5.814736657 | D8: =C8/C9 -> 0.4627254757 | E8: 7.7 | F8: =E8/E9 -> 0.6695652174
B9: Total | C9: 12.56627734 | D9: =C9/C9 -> 1 | E9: =SUM(E6:E8) -> 11.5 | F9: =SUM(F6:F8) -> 1
B10: Source: Independent Communications Authority of South Africa (ICASA), Report on the state of the ICT sector in South Africa 2023, March 2023, pp47-48
B11: a As at 30 September 2016.
B12: b As at 30 September 2022.
B14: Mobile voice traffic in minutes, 2016 and 2022
C16: —2016a— | E16: —2022b—
B17: Type of traffic | C17: Number of minutes (billions) | D17: Proportion of total | E17: Number of minutes (billions) | F17: Proportion of total
B18: Local mobile to fixed-line | C18: 2.316 | D18: =C18/C21 -> 0.02547424189 | E18: 3.9 | F18: =E18/E21 -> 0.0355515041
B19: Local mobile to same mobile network | C19: 77.14327498 | D19: =C19/C21 -> 0.8485174641 | E19: 84.8 | F19: =E19/E21 -> 0.77301732
B20: Local mobile to other mobile network | C20: 11.45609005 | D20: =C20/C21 -> 0.126008294 | E20: 21.5 | F20: =E20/E21 -> 0.1959890611
B21: Totalc | C21: 90.91536503 | D21: =C21/C21 -> 1 | E21: 109.7 | F21: =E21/E21 -> 1
B22: Source: ICASA, Report on the state of the ICT sector in South Africa 2017, March 2017, p32; Report on the state of the ICT sector in South Africa 2023, March 2023, p50
B23: a As at 30 September 2016.
B24: b As at 30 September 2022.

Sheet Landlines

Sheet Fixed-line. tel.1993-2022
B2: Fixed-line telephones
B4: Fixed-line subscribersa, 1993-2022
B6: Year | C6: Fixed-line telephones | D6: Number of households | E6: Share of all households with fixed-line telephones | F6: Year-on-year change in number (fixed-line telephones) | G6: Year-on-year change in proportionb (fixed-line telephones)
B7: 1993 | C7: 3458000 | D7: 8919000 | E7: 0.388 | F7: — | G7: —
B8: 1994 | C8: 3594000 | D8: 9079000 | E8: 0.396 | F8: 136000 | G8: 0.039
B9: 1995 | C9: 3773000 | D9: 9246000 | E9: 0.408 | F9: 179000 | G9: 0.05
B10: 1996 | C10: 3926000 | D10: 9535000 | E10: 0.412 | F10: 153000 | G10: 0.041
B11: 1997 | C11: 4259000 | D11: 9842000 | E11: 0.433 | F11: 333000 | G11: 0.085
B12: 1998 | C12: 4645000 | D12: 10154000 | E12: 0.457 | F12: 386000 | G12: 0.091
B13: 1999 | C13: 5075000 | D13: 10657000 | E13: 0.476 | F13: 430000 | G13: 0.093
B14: 2000 | C14: 5493000 | D14: 10820000 | E14: 0.508 | F14: 418000 | G14: 0.082
B15: 2001 | C15: 4962000 | D15: 11560370 | E15: 0.429 | F15: -531000 | G15: -0.097
B16: 2002 | C16: 4924000 | D16: 11859597 | E16: 0.415 | F16: -38000 | G16: -0.008
B17: 2003 | C17: 4812000 | D17: 12142786 | E17: 0.396 | F17: -112000 | G17: -0.023
B18: 2004 | C18: 4870000 | D18: 12415422 | E18: 0.392 | F18: 58000 | G18: 0.012
B19: 2005 | C19: 4730000 | D19: 12676972 | E19: 0.373 | F19: -140000 | G19: -0.029
B20: 2006 | C20: 4675000 | D20: 12929389 | E20: 0.362 | F20: -55000 | G20: -0.012
B21: 2007 | C21: 4621000 | D21: 13171503 | E21: 0.351 | F21: -54000 | G21: -0.012
B22: 2008 | C22: 4504000 | D22: 13447000 | E22: 0.335 | F22: -117000 | G22: -0.025
B23: 2009 | C23: 4398000 | D23: 13812000 | E23: 0.318 | F23: -106000 | G23: -0.024
B24: 2010 | C24: 4234000 | D24: 14304000 | E24: 0.296 | F24: -164000 | G24: -0.037
B25: 2011 | C25: 4073000 | D25: 14450000 | E25: 0.282 | F25: -161000 | G25: -0.038
B26: 2012 | C26: 3894000 | D26: 14631000 | E26: 0.266 | F26: -179000 | G26: -0.044
B27: 2013 | C27: 3713000 | D27: 15107000 | E27: 0.246 | F27: -181000 | G27: -0.046
B28: 2014 | C28: 3531000 | D28: 15602000 | E28: 0.226 | F28: -182000 | G28: -0.049
B29: 2015 | C29: 3323000 | D29: 16122000 | E29: 0.206 | F29: -208000 | G29: -0.059
B30: 2016 | C30: 3090000 | D30: 16923309 | E30: 0.183 | F30: -233000 | G30: -0.07
B31: 2017 | C31: 2840000 | D31: 16198000 | E31: 0.175 | F31: -250000 | G31: -0.081
B32: 2018 | C32: 2566000 | D32: 16671000 | E32: 0.154 | F32: -274000 | G32: -0.096
B33: 2019 | C33: 1975000 | D33: 17163000 | E33: 0.115 | F33: -591000 | G33: -0.23
B34: 2020 | C34: 1432000 | D34: 17418000 | E34: 0.082 | F34: -543000 | G34: -0.275
B35: 2021 | C35: 1284000 | D35: 17947000 | E35: 0.072 | F35: -148000 | G35: -0.103
B36: 2022 | C36: 997000 | D36: 18477000 | E36: 0.054 | F36: -287000 | G36: -0.224
B37: Source: MyBroadband, www.mybroadband.co.za, accessed 25 April 2024
B38: a Refers only to Telkom subscribers. Figures for Neotel, the second national operator (SNO) formed in August 2006, are not included.
B39: b CRA calculations.

Sheet Fixed-line traffic.inter.15.22
B2: International fixed-line traffic, 2015-22
B4: Incoming and outgoing traffic | C4: —Minutes (millions)— | F4: Change 2015-22
C5: 2015 | D5: 2017 | E5: 2022
B6: International incoming fixed-line traffic | C6: 322.372375 | D6: 570.913603 | E6: 89.233309 | F6: =(E6-C6)/C6 -> -0.7231980284
B7: International outgoing fixed-line traffic | C7: 243.328615 | D7: 206.579369 | E7: 135.878119 | F7: =(E7-C7)/C7 -> -0.4415859434
B8: International incoming and outgoing fixed-line traffic | C8: 565.70099 | D8: 777.492971 | E8: 225.111427 | F8: -0.6020664079
B9: Source: ICASA, The state of the ICT sector in South Africa 2023, March 2023, p110

Sheet Cellphones

Sheet Cellphones,households.23
B2: Cellular phones
B4: Households with a cellular phone by race and sex of household head, 2023
B6: Race | E6: —Proportiona—
C7: Indicator | D7: Sex | E7: Yes | F7: No | G7: Total
B8: Black | C8: Proportion of all Black people | D8: Male | E8: 0.4649597899 | F8: 0.5619834711 | G8: 0.4686135228
D9: Female | E9: 0.3629301384 | F9: 0.2727272727 | G9: 0.3594843462
C10: Proportion of all South Africans | D10: Total | E10: 0.8278352207 | F10: 0.8347107438 | G10: 0.828097869
B11: Coloured | C11: Proportion of all Coloured people | D11: Male | E11: 0.03588817769 | F11: 0.06060606061 | G11: 0.03683241252
D12: Female | E12: 0.02877619126 | F12: 0.07162534435 | G12: 0.03036043147
C13: Proportion of all South Africans | D13: Total | E13: 0.06460966136 | F13: 0.132231405 | G13: 0.06719284399
B14: Indian/Asian | C14: Proportion of all Indian/Asian people | D14: Male | E14: 0.01668581432 | F14: 0.006887052342 | G14: 0.01631149697
D15: Female | E15: 0.007111986433 | F15: 0.004132231405 | G15: 0.007050776112
C16: Proportion of all South Africans | D16: Total | E16: 0.02385250834 | F16: 0.01101928375 | G16: 0.02336227309
B17: White | C17: Proportion of all White people | D17: Male | E17: 0.0567317687 | F17: 0.01515151515 | G17: 0.05509076559
D18: Female | E18: 0.02697084086 | F18: 0.00826446281 | G18: 0.02625624836
C19: Proportion of all South Africans | D19: Total | E19: 0.08370260955 | F19: 0.02341597796 | G19: 0.08134701394
B20: Total | C20: Proportion of all South Africans | D20: Male | E20: 0.5742655506 | F20: 0.6432506887 | G20: 0.5768481978
D21: Female | E21: 0.4257344494 | F21: 0.3581267218 | G21: 0.4231518022
D22: Total | E22: 1 | F22: 1 | G22: 1
B23: Source: CRA calculaions based on Stats SA data
B24: a CRA calculations. Proportions may not add up vertically, owing to the exclusion of figures too small for reliable estimates to be made.

Sheet Subscribers by network.11-23
B2: Cellular phone subscribers by network, 2014-23
C4: —2014— | E4: —2017— | G4: —2021— | I4: —2022— | K4: —2023— | M4: Change in number of subscribers 2014-23
B5: Network provider | C5: Number of subscribers (millions) | D5: Market share | E5: Number of subscribers (millions) | F5: Market share | G5: Number of subscribers (millions) | H5: Market share | I5: Number of subscribers (millions) | J5: Market share | K5: Number of subscribers (millions) | L5: Market share
B6: Cell C | C6: 18.1 | D6: =C6/79.8 -> 0.2268170426 | E6: 15.3 | F6: 0.173 | G6: 12.9 | H6: =G6/108.1 -> 0.11933395 | I6: 12.8 | J6: 0.114 | K6: 8.2 | L6: =K6/110.6 -> 0.07414104882 | M6: =(K6-C6)/C6 -> -0.546961326
B7: MTN | C7: 28 | D7: =C7/79.8 -> 0.350877193 | E7: 30.8 | F7: 0.349 | G7: 33.5 | H7: =G7/108.1 -> 0.3098982424 | I7: 35.9 | J7: 0.32 | K7: 36.8 | L7: =K7/110.6 -> 0.3327305606 | M7: =(K7-C7)/C7 -> 0.3142857143
B8: Telkom mobile/8ta | C8: 1.8 | D8: =C8/79.8 -> 0.02255639098 | E8: 4 | F8: 0.045 | G8: 16.3 | H8: 0.150786309 | I8: 18 | J8: 0.161 | K8: 18.3 | L8: 0.1654611212 | M8: =(K8-C8)/C8 -> 9.166666667
B9: Vodacom | C9: 31.4 | D9: =C9/79.8 -> 0.3934837093 | E9: 37.1 | F9: 0.421 | G9: 45.4 | H9: =G9/108.1 -> 0.4199814986 | I9: 45.5 | J9: 0.406 | K9: 47.3 | L9: 0.4276672694 | M9: =(K9-C9)/C9 -> 0.5063694268
B10: Total subscribers | C10: 79.8 | D10: =SUM(D6:D9) -> 0.9937343358 | E10: 88.2 | F10: 1 | G10: =SUM(G6:G9) -> 108.1 | H10: 1 | I10: 112.2 | J10: 1 | K10: =SUM(K6:K9) -> 110.6 | L10: 1 | M10: =(K10-C10)/C10 -> 0.3859649123
B11: Source: Businesstech, www.businesstech.co.za, accessed 1 July 2015, 17 August 2018, 13 April 2022; Mybroadband, www.mybroadband.co.za, accessed 4 May 2024

Sheet Prepaid.Postp mobile subs.15.22
B2: Pre-paid and post-paid cellular phone subscriptions, 2015-22
B4: Type of cellular phone subscription | C4: 2015 | D4: 2016a | E4: 2017b | F4: 2018c | G4: 2019d | H4: 2020e | I4: 2021f | J4: 2022g | K4: Change 2015-22
C5: —Number of subscriptions (millions)—
B6: Pre-paid mobile cellular phone | C6: 72.423365 | D6: 68.710864 | E6: 76.546031 | F6: 80.436209 | G6: 82.323854 | H6: 79.419434 | I6: 86.816228 | J6: 89.3 | K6: =(J6-C6)/C6 -> 0.2330274905
B7: Post-paid mobile cellular phone | C7: 14.561818 | D7: 12.603599 | E7: 10.607077 | F7: 11.271522 | G7: 14.684605 | H7: 15.533075 | I7: 16.351297 | J7: 17.5 | K7: =(J7-C7)/C7 -> 0.2017730204
B8: Source: ICASA, The state of the ICT sector in South Africa 2022, March 2022, p38
B9: a As at 30 September 2016.
B10: b As at 30 September 2017.
B11: c As at 30 September 2018.
B12: d As at 30 September 2019.
B13: e As at 30 September 2020.
B14: f As at 30 September 2021.
B15: g As at 30 September 2022.

Sheet Call charges
B2: Call charges over time by cellular phone network operator, 2024
C4: —Prepaid price plan rates comparison—
C5: —Cell C— | E5: —MTN— | H5: —Vodacom— | J5: —Telkom—
B6: Call duration in minutes | C6: Cell C 4Eva Rates | D6: Cell C All-In-One | E6: MTN Bonus Bonanza | F6: MTN Super Data | G6: MTN Pay Per Second | H6: Vodacom Prepaid LTE | I6: Vodacom Power Pack | J6: Telkom Prepaid LTE | K6: Telkom More | L6: Telkom Thola More
B7: 0.5 | C7: =0.49*B7 -> 0.245 | D7: =1.5*B7 -> 0.75 | E7: 0.75 | F7: =1.99*B7 -> 0.995 | G7: =0.99*B7 -> 0.495 | H7: =2.09*B7 -> 1.045 | I7: =1.55*B7 -> 0.775 | J7: =2.77*B7 -> 1.385 | K7: =1.99*B7 -> 0.995 | L7: =0.75*B7 -> 0.375
B8: 1 | C8: =0.49*B8 -> 0.49 | D8: =1.5*B8 -> 1.5 | E8: 1.5 | F8: =1.99*B8 -> 1.99 | G8: =0.99*B8 -> 0.99 | H8: =2.09*B8 -> 2.09 | I8: =1.55*B8 -> 1.55 | J8: =2.77*B8 -> 2.77 | K8: =1.99*B8 -> 1.99 | L8: =0.75*B8 -> 0.75
B9: 1.5 | C9: 0.735 | D9: =1.5*B9 -> 2.25 | E9: 2.25 | F9: =1.99*B9 -> 2.985 | G9: 1.485 | H9: 3.135 | I9: 2.325 | J9: 4.155 | K9: 2.985 | L9: 1.125
B10: 2 | C10: 0.98 | D10: 3 | E10: 3 | F10: 3.98 | G10: 1.98 | H10: 4.18 | I10: 3.1 | J10: 5.54 | K10: 3.98 | L10: 1.5
B11: 2.5 | C11: =0.49*B11 -> 1.225 | D11: 3.75 | E11: 3.75 | F11: 4.975 | G11: 2.475 | H11: 5.225 | I11: 3.875 | J11: 6.925 | K11: 4.975 | L11: 1.875
B12: 3 | C12: 1.47 | D12: 4.5 | E12: 4.5 | F12: 5.97 | G12: 2.97 | H12: 6.27 | I12: 4.65 | J12: 8.31 | K12: 5.97 | L12: 2.25
B13: 3.5 | C13: 1.715 | D13: 5.25 | E13: 5.25 | F13: 6.965 | G13: 3.465 | H13: 7.315 | I13: 5.425 | J13: 9.695 | K13: 6.965 | L13: 2.625
B14: 4 | C14: 1.96 | D14: 6 | E14: 6 | F14: 7.96 | G14: 3.96 | H14: 8.36 | I14: 6.2 | J14: 11.08 | K14: 7.96 | L14: 3
B15: 4.5 | C15: 2.205 | D15: 6.75 | E15: 6.75 | F15: 8.955 | G15: 4.455 | H15: 9.405 | I15: 6.975 | J15: 12.465 | K15: 8.955 | L15: 3.375
B16: 5 | C16: 2.45 | D16: 7.5 | E16: 7.5 | F16: 9.95 | G16: 4.95 | H16: 10.45 | I16: 7.75 | J16: 13.85 | K16: 9.95 | L16: 3.75
B17: Per minute fee | C17: 0.49 | D17: 1.5 | E17: 1.5 | F17: 1.99 | G17: 0.99 | H17: 2.09 | I17: 1.55 | J17: 2.77 | K17: 1.99 | L17: 0.75
B18: Source: Cell C, www.cellc.co.za; accessed 11 January 2024; MTN, www.mtn.co.za; accessed 11 January 2024; Vodacom, www.vodacom.co.za, accessed 11 January 2024; Telkom, www.telkom.co.za, accessed 11 January 2024

Sheet Call charges (BC)
B4: —Network call charges Ra—
A5: Call duration in minutes | B5: Cell C 4Eva Rates | C5: Cell C All-In-One | D5: MTN Bonus Bonanza | E5: MTN Super Data | F5: MTN Pay Per Second | G5: Vodacom Prepaid LTE | H5: Vodacom Power Pack | I5: Telkom Prepaid LTE | J5: Telkom More | K5: Telkom Thola More
A6: Per minute fee | B6: 0.49 | C6: 1.5 | D6: 1.5 | E6: 1.99 | F6: 0.99 | G6: 2.09 | H6: 1.55 | I6: 2.77 | J6: 1.99 | K6: 0.75

Sheet Capital expenditure&incomes

Sheet Exp,income in the post and tel
B2: Capital expenditure and incomes
B4: Capital expenditure on new assets in the post and telecommunications industry, 2016-22
C6: ─2016─ | E6: ─2019─ | G6: ─2022─ | I6: Change in expenditure (2016-22)
B7: Type of service | C7: Rm | D7: Proportion | E7: Rm | F7: Proportion | G7: Rm | H7: Proportion
B8: Post and associated courier activities | C8: 419 | D8: =C8/34169 -> 0.01226257719 | E8: 467 | F8: =E8/35782 -> 0.01305125482 | G8: 808 | H8: =G8/41599 -> 0.01942354384 | I8: =(G8-C8)/C8 -> 0.9284009547
B9: Telecommunications | C9: 33750 | D9: =C9/34169 -> 0.9877374228 | E9: 35315 | F9: =E9/35782 -> 0.9869487452 | G9: 40791 | H9: =G9/41599 -> 0.9805764562 | I9: =(G9-C9)/C9 -> 0.2086222222
B10: Total | C10: 34169 | D10: =C10/34169 -> 1 | E10: 35782 | F10: =E10/35782 -> 1 | G10: 41599 | H10: =G10/41599 -> 1 | I10: =(G10-C10)/C10 -> 0.2174485645
B11: Source: Stats SA, Post and telecommunications industry 2022, Report No: 75-01-01 (2022), 27 June 2024, Table 2.5, p11
B14: Income in the post and telecommunications industry, 2013-22
C16: ─2013─ | E16: ─2016─ | G16: ─2019─ | I16: ─2022─ | K16: Change in income (2013-22)
B17: Type of service | C17: Rm | D17: Proportion | E17: Rm | F17: Proportion | G17: Rm | H17: Proportion | I17: Rm | J17: Proportion
B18: Post and associated courier activities | C18: 12208 | D18: 0.046 | E18: 13936 | F18: =E18/E20 -> 0.04512690322 | G18: 17515 | H18: =G18/G20 -> 0.04733131379 | I18: 23997 | J18: =I18/I20 -> 0.06118717968 | K18: =(I18-C18)/C18 -> 0.9656782438
B19: Telecommunications | C19: 252819 | D19: 0.954 | E19: 294882 | F19: =E19/E20 -> 0.9548730968 | G19: 352536 | H19: =G19/G20 -> 0.9526686862 | I19: 368193 | J19: =I19/I20 -> 0.9388128203 | K19: =(I19-C19)/C19 -> 0.4563501952
B20: Total | C20: 265027 | D20: 1 | E20: 308818 | F20: 1 | G20: 370051 | H20: 1 | I20: 392190 | J20: 1 | K20: =(I20-C20)/C20 -> 0.4798114909
B21: Source: Stats SA, Post and telecommunications industry 2022, Report No: 75-01-01 (2022), 27 June 2024, Table 2.1, p3

Sheet Income from services in telecom
B3: Income from services in telecommunications, 2019 and 2022
C5: ─2019─ | E5: ─2022─
B6: Type of service | C6: Rm | D6: Proportion | E6: Rm | F6: Proportion
B7: Telecommunications services through fixed lines (including fixed-mobile) | C7: 14466 | D7: =C7/299376 -> 0.04832050665 | E7: 11106 | F7: =E7/305280 -> 0.03637971698
B8: Telecommunications services through mobile lines | C8: 160679 | D8: 0.5367130298 | E8: 163110 | F8: 0.5342963836
B9: Data transmission services | C9: 5347 | D9: 0.01786048314 | E9: 5401 | F9: 0.01769195493
B10: Internet telecommunications access services | C10: 17335 | D10: 0.05790377318 | E10: 18826 | F10: 0.06166797694
B11: Interconnection services to customers | C11: 16570 | D11: 0.05534845813 | E11: 13988 | F11: 0.04582023061
B12: Subscriptions, licence fees and content income | C12: 26803 | D12: 0.08952955481 | E12: 26776 | F12: 0.08770964361
B13: Advertising airtime income except on commission | C13: 9531 | D13: 0.03183621934 | E13: 9052 | F13: 0.02965146751
B14: Other telecommunication and broadcasting services | C14: 8682 | D14: 0.02900032067 | E14: 8454 | F14: 0.02769261006
B15: Other services rendered | C15: 39963 | D15: 0.1334876543 | E15: 48567 | F15: 0.1590900157
B16: Total income from services rendered | C16: 299376 | D16: 1 | E16: 305280 | F16: 1
B17: Source: Stats SA, Post and telecommunications industry 2022, Report No: 75-01-01 (2022), 27 June 2024, Table G, p10

Sheet Income by size group
B2: Income by enterprise size in the post and telecommunications industry, 2022
B4: Type of service | C4: Large enterprisesa | D4: Medium enterprisesb | E4: Small enterprisesc | F4: Micro enterprisesd | G4: Total
C5: ─Rm─
B6: Post and associated courier activities | C6: 19527 | D6: 1204 | E6: 2220 | F6: 1046 | G6: 23997
B7: Telecommunications | C7: 349278 | D7: 8187 | E7: 6744 | F7: 3984 | G7: 368193
B8: Total | C8: 368805 | D8: 9391 | E8: 8964 | F8: 5030 | G8: 392190
B9: Source: Stats SA, Post and telecommunications industry 2022, Report No: 75-01-01 (2022), 27 June 2024, Table 6, p15
B11: a Large enterprises have a turnover above R156 000 000.
B12: b Medium enterprises have a turnover above R36 000 000 not exceeding or equal to R156 000 000.
B13: c Small enterprises have a turnover above R6 000 000 not exceeding or equal to R36 000 000.
B14: d Micro enterprises have a turnover of less than R6 000 000.

Sheet The Internet

Sheet Internet access by prov 23
B1: The Internet
B3: Access
B5: Households access to Internet by source and province, 2023
B7: Province | C7: Total number of households per province | D7: Mobile | E7: Fixed Internet at home | F7: Internet at work | G7: Public wifi | H7: Internet café | I7: At educational facility | J7: At a library | K7: Any kind of access
B8: Eastern Cape | C8: 1761000 | D8: 0.672 | E8: 0.077 | F8: 0.088 | G8: 0.016 | H8: 0.035 | I8: 0.044 | J8: 0.007 | K8: 0.702
B9: Free State | C9: 999000 | D9: 0.715 | E9: 0.063 | F9: 0.098 | G9: 0.074 | H9: 0.041 | I9: 0.048 | J9: 0.03 | K9: 0.753
B10: Gauteng | C10: 5779000 | D10: 0.731 | E10: 0.215 | F10: 0.183 | G10: 0.113 | H10: 0.095 | I10: 0.067 | J10: 0.018 | K10: 0.819
B11: KwaZulu-Natal | C11: 3292000 | D11: 0.785 | E11: 0.069 | F11: 0.169 | G11: 0.078 | H11: 0.096 | I11: 0.033 | J11: 0.117 | K11: 0.806
B12: Limpopo | C12: 1775000 | D12: 0.673 | E12: 0.045 | F12: 0.054 | G12: 0.019 | H12: 0.009 | I12: 0.015 | J12: 0.003 | K12: 0.697
B13: Mpumalanga | C13: 1493000 | D13: 0.769 | E13: 0.031 | F13: 0.071 | G13: 0.044 | H13: 0.06 | I13: 0.009 | J13: 0.007 | K13: 0.785
B14: North West | C14: 1390000 | D14: 0.705 | E14: 0.053 | F14: 0.054 | G14: 0.047 | H14: 0.021 | I14: 0.036 | J14: 0.014 | K14: 0.723
B15: Northern Cape | C15: 380000 | D15: 0.68 | E15: 0.074 | F15: 0.097 | G15: 0.076 | H15: 0.002 | I15: 0.009 | J15: 0.004 | K15: 0.704
B16: Western Cape | C16: 2136000 | D16: 0.708 | E16: 0.401 | F16: 0.223 | G16: 0.149 | H16: 0.096 | I16: 0.077 | J16: 0.044 | K16: 0.881
B17: South Africa | C17: 19005000 | D17: 0.726 | E17: 0.145 | F17: 0.14 | G17: 0.08 | H17: 0.069 | I17: 0.046 | J17: 0.035 | K17: 0.786
B18: Source: Stats SA, General Household Survey 2023, Statistical release P0318, 23 May 2024, Table 14,1, p53

Sheet Internet users.00-22
C2: Internet users, 2000-22
C4: Year | D4: Per 100 people
C5: 2000 | D5: 5.4
C6: 2001 | D6: 6.4
C7: 2002 | D7: 6.7
C8: 2003 | D8: 7
C9: 2004 | D9: 8.4
C10: 2005 | D10: 7.5
C11: 2006 | D11: 7.6
C12: 2007 | D12: 8.1
C13: 2008 | D13: 8.4
C14: 2009 | D14: 10
C15: 2010 | D15: 24
C16: 2011 | D16: 34
C17: 2012 | D17: 41
C18: 2013 | D18: 46.5
C19: 2014 | D19: 49
C20: 2015 | D20: 51.9
C21: 2016 | D21: 54
C22: 2017 | D22: 56.17
C23: 2018 | D23: 62.4
C24: 2019 | D24: 69.7
C25: 2020 | D25: 72.1
C26: 2021 | D26: 74.2
C27: 2022 | D27: 74.7
B28: Source: ITU, www.itu.int, Time series by country (2000-2022), accessed 25 April 2024

Sheet Internet users.00-22(BC)
B3: Year | C3: Internet users, 2000-20
B4: 2000 | C4: 5.4
B5: 2001 | C5: 6.4
B6: 2002 | C6: 6.7
B7: 2003 | C7: 7
B8: 2004 | C8: 8.4
B9: 2005 | C9: 7.5
B10: 2006 | C10: 7.6
B11: 2007 | C11: 8.1
B12: 2008 | C12: 8.4
B13: 2009 | C13: 10
B14: 2010 | C14: 24
B15: 2011 | C15: 34
B16: 2012 | C16: 41
B17: 2013 | C17: 46.5
B18: 2014 | C18: 49
B19: 2015 | C19: 51.9
B20: 2016 | C20: 54
B21: 2017 | C21: 56.17
B22: 2018 | C22: 62.4
B23: 2019 | C23: 69.7
B24: 2020 | C24: 70.3
B25: 2021 | C25: 74
B26: 2022 | C26: 75

Sheet Internet users by age. 2021
B2: Internet usersa by age, 2021
B4: Age group | C4: Jan-Sept 21
B5: 15-24 | C5: 0.245
B6: 25-34 | C6: 0.274
B7: 35-44 | C7: 0.227
B8: 45-64 | C8: 0.211
B9: 65+ | C9: 0.0434
B10: Source: Statista, www.statista.com, accessed 7 May 2023
B11: a People aged 15 and above who accessed the Internet in the last 12 months.
B13: a For example, in 2021, 27.4% of South Africans aged between 25 and 34 accessed the Internet in the last 12 months from when the survey was carried out.

Sheet Internet users.sel.count.2022
B2: Internet usersa, selected countries, 2022
B4: Country | C4: Number | D4: Total population | E4: Proportion of population with accessb
C5: —Millions—
B6: Australia | C6: N/A | D6: 25.739256 | E6: N/A
B7: Botswana | C7: N/A | D7: 2.39724 | E7: N/A
B8: Brazil | C8: 178.1 | D8: 213.993441 | E8: =C8/D8 -> 0.8322684993
B9: Chile | C9: 18.8351 | D9: 19.212362 | E9: 0.9803635805
B10: China | C10: 1010.74 | D10: 1412.36 | E10: 0.7156390722
B11: Denmark | C11: 5.689589 | D11: 5.856733 | E11: 0.9714612225
B12: Egypt | C12: N/A | D12: 104.258327 | E12: N/A
B13: France | C13: 60.421689 | D13: 67.499343 | E13: 0.8951448461
B14: Germany | C14: 79.127551 | D14: 83.129285 | E14: 0.9518613206
B15: Ghana | C15: N/A | D15: 31.732128 | E15: N/A
B16: Greece | C16: 8.115397 | D16: 10.664568 | E16: 0.7609681892
B17: Hong Kong | C17: 6.688549 | D17: 7.4131 | E17: 0.9022607276
B18: India | C18: 833.71 | D18: 1393.409033 | E18: 0.5983239524
B19: Indonesia | C19: 212.35407 | D19: 276.361788 | E19: 0.7683915766
B20: Ireland | C20: 4.626642 | D20: 5.02823 | E20: 0.9201333272
B21: Israel | C21: 7.99345 | D21: 9.364 | E21: 0.8536362666
B22: Italy | C22: 54.798299 | D22: 59.066225 | E22: 0.9277433762
B23: Japan | C23: 118.626672 | D23: 125.681593 | E23: 0.9438667124
B24: Kazakhstan | C24: 16.465777 | D24: 19.002586 | E24: 0.8665019066
B25: Lithuania | C25: 2.6039 | D25: 2.795321 | E25: 0.9315209237
B26: Mexico | C26: N/A | D26: 130.26222 | E26: N/A
B27: Mozambique | C27: 6.523613 | D27: 32.163045 | E27: 0.2028294585
B28: Nigeria | C28: 154.301195 | D28: 211.400704 | E28: 0.729899154
B29: Pakistan | C29: 116 | D29: 225.199929 | E29: 0.5150978533
B30: Philippines | C30: 101.9 | D30: 111.04691 | E30: 0.9176302159
B31: Poland | C31: 34.697848 | D31: 37.781024 | E31: 0.91839353
B32: Russia | C32: 124.63 | D32: 143.44606 | E32: 0.8688283247
B33: Saudi Arabia | C33: 35.005034 | D33: 35.34068 | E33: 0.9905025597
B34: South Africa | C34: N/A | D34: 60.041996 | E34: N/A
B35: Spain | C35: 43.509182 | D35: 47.326687 | E35: 0.9193371596
B36: Switzerland | C36: 8.4268 | D36: 8.697723 | E36: 0.9688512729
B37: Turkey | C37: 72.5 | D37: 85.042736 | E37: 0.8525125532
B38: Uganda | C38: N/A | D38: 47.123533 | E38: N/A
B39: United Kingdom | C39: 65.045228 | D39: 67.326569 | E39: 0.9661152939
B40: United States | C40: N/A | D40: 331.893745 | E40: N/A
B41: Venezuela | C41: 22.735 | D41: 28.704947 | E41: =C41/D41 -> 0.7920237581
B42: Source: Internet World Stats, www.internetworldstats.com, Usage and Population Statistics, accessed 29 August 2022; World Bank, www.worldbank.org, World Development Indicators: Population dynamics, accessed 29 August 2022
B43: a As at 31 July 2022.
B44: N/A — Not available.

Sheet Fixed broadband. regional.23
B2: Fixed broadbanda subscriptions by world region, 2005-23
C4: —Per 100 people—
B5: Region | C5: 2005 | D5: 2010 | E5: 2015 | F5: 2016 | G5: 2017 | H5: 2018 | I5: 2019 | J5: 2020 | K5: 2021 | L5: 2022 | M5: 2023
B6: Africa | C6: 0 | D6: 0.2 | E6: 0.4 | F6: 0.4 | G6: 0.4 | H6: 0.4 | I6: 0.5 | J6: 0.6 | K6: 0.6 | L6: 0.7 | M6: 0.8
B7: Americas | C7: 7.5 | D7: 14.3 | E7: 18.6 | F7: 19.2 | G7: 19.9 | H7: 20.6 | I7: 21.3 | J7: 22.8 | K7: 24.2 | L7: 24.9 | M7: 25.8
B8: Arab States | C8: 0.3 | D8: 2 | E8: 4.7 | F8: 5.1 | G8: 6.9 | H8: 7.3 | I8: 7.5 | J8: 8.6 | K8: 9.7 | L8: 10.5 | M8: 11.7
B9: Asia-Pacific | C9: 2.2 | D9: 5.5 | E9: 9.7 | F9: 11 | G9: 12.8 | H9: 13.2 | I9: 14.3 | J9: 15.4 | K9: 16.8 | L9: 18.3 | M9: 19.3
B10: Commonwealth of Independent States (Russia etc) | C10: 0.7 | D10: 8.3 | E10: 15.4 | F10: 16 | G10: 17.8 | H10: 18.5 | I10: 18.5 | J10: 19.7 | K10: 20.9 | L10: 22.2 | M10: 23.2
B11: Europe | C11: 10.1 | D11: 22.8 | E11: 28.2 | F11: 29.2 | G11: 30.3 | H11: 31.3 | I11: 32.3 | J11: 33.7 | K11: 34.6 | L11: 35.3 | M11: 36.4
B12: Source: ITU, www.itu.int, Global and regional ICT data (2005-23), accessed 6 May 2024
B13: a High-speed data transmission that uses fixed technologies such as cables.

Sheet Mobile subs.regional.23
B2: Active mobile broadbanda subscriptions by world region, 2010-23
B4: Region | C4: 2010 | D4: 2015 | E4: 2016 | F4: 2017 | G4: 2018 | H4: 2019 | I4: 2020 | J4: 2021 | K4: 2022 | L4: 2023
B5: Africa | C5: 1.7 | D5: 18.9 | E5: 21.8 | F5: 25.1 | G5: 28.1 | H5: 33.8 | I5: 38.4 | J5: 39.7 | K5: 44.8 | L5: 48
B6: Americas | C6: 25.4 | D6: 78.8 | E6: 85.3 | F6: 89.7 | G6: 91.9 | H6: 97.7 | I6: 101.2 | J6: 108.2 | K6: 111.4 | L6: 116.2
B7: Arab States | C7: 7.8 | D7: 41.3 | E7: 44.3 | F7: 52.4 | G7: 57.4 | H7: 60.8 | I7: 64 | J7: 67.6 | K7: 71.4 | L7: 75.4
B8: Asia-Pacific | C8: 7.3 | D8: 37.5 | E8: 46.2 | F8: 61.3 | G8: 69.6 | H8: 75.2 | I8: 79.3 | J8: 83.9 | K8: 86.9 | L8: 87.6
B9: Commonwealth of Independent States (Russia etc) | C9: 25.7 | D9: 60.4 | E9: 65 | F9: 72.7 | G9: 77.5 | H9: 88.5 | I9: 93.1 | J9: 99.8 | K9: 103.4 | L9: 105.9
B10: Europe | C10: 28.7 | D10: 69.6 | E10: 79.5 | F10: 86.4 | G10: 92.3 | H10: 98.2 | I10: 102 | J10: 105.7 | K10: 106.3 | L10: 110.3
B11: Source: ITU, www.itu.int, Global and regional ICT data (2005-23), accessed 6 May 2024
B12: a Wireless data connection that uses mobile connections such as portable modems, mobile phones or other mobile devices.

Sheet Mobile broad penet+%conn.23
B2: Mobile broadbanda penetration and share of connections, selected countries, 2023
B4: Country | C4: Active cellular mobile connections as a share of the total population | D4: Mobile broadband connections as a share of all cellular mobile connections
B5: Australia | C5: 1.243 | D5: 1
B6: Botswana | C6: N/A | D6: N/A
B7: Brazil | C7: 1.024 | D7: 0.93
B8: China | C8: 1.186 | D8: 0.996
B9: Denmark | C9: 1.516 | D9: 0.996
B10: Egypt | C10: 0.939 | D10: 0.87
B11: France | C11: 1.1 | D11: 0.982
B12: Germany | C12: 1.436 | D12: 0.973
B13: Ghana | C13: 1.298 | D13: 0.929
B14: Greece | C14: 1.443 | D14: 0.947
B15: Hong Kong | C15: N/A | D15: 1
B16: India | C16: 0.77 | D16: 0.747
B17: Indonesia | C17: 1.28 | D17: 0.942
B18: Ireland | C18: 1.028 | D18: 0.959
B19: Israel | C19: 1.169 | D19: 0.987
B20: Italy | C20: 1.326 | D20: 0.884
B21: Japan | C21: 1.491 | D21: 0.999
B22: Kazakhstan | C22: N/A | D22: N/A
B23: Lithuania | C23: N/A | D23: N/A
B24: Mexico | C24: N/A | D24: 0.926
B25: Nigeria | C25: 0.877 | D25: 0.835
B26: Philippines | C26: 1.445 | D26: 0.992
B27: Poland | C27: 1.277 | D27: 0.929
B28: Russia | C28: 1.569 | D28: 0.878
B29: Saudi Arabia | C29: 1.159 | D29: 0.973
B30: South Africa | C30: 1.874 | D30: 0.853
B31: Spain | C31: N/A | D31: 0.965
B32: Switzerland | C32: N/A | D32: 0.996
B33: Turkey | C33: 0.954 | D33: 0.924
B34: Uganda | C34: N/A | D34: N/A
B35: United Kingdom | C35: 1.296 | D35: 0.987
B36: United States | C36: 1.131 | D36: 0.997
B37: Venezuela | C37: N/A | D37: N/A
B38: Source: DataReportal, Digital 2023: Global overview report, accessed 13 May 2024
B39: a As at January 2023.
B40: N/A — Not available.

Sheet Internet speeds

Sheet Int.speed.cities.24
B2: Speeds
B4: South African Internet speeds, selected areas, 2024
D6: —Mobile— | F6: —Fixed—
C7: Area | D7: Average download speed Mbpsa | E7: Average upload speed Mbpsa | F7: Average download speed Mbpsa | G7: Average upload speed Mbpsa
C8: Bloemfontein | D8: 76.17 | E8: 12.91 | F8: 41.63 | G8: 33.05
C9: Boksburg | D9: 74.98 | E9: 12.41 | F9: 44.96 | G9: 16.14
C10: Bryanston | D10: N/A | E10: N/A | F10: N/A | G10: N/A
C11: Cape Town | D11: 55.44 | E11: 8.75 | F11: 52.64 | G11: 50.61
C12: Centurion | D12: 87.23 | E12: 11.1 | F12: 55 | G12: 48.27
C13: Claremont | D13: N/A | E13: N/A | F13: N/A | G13: N/A
C14: Durban | D14: 42.42 | E14: 9.47 | F14: 47.03 | G14: 32.96
C15: East London | D15: N/A | E15: N/A | F15: 43.25 | G15: 39.54
C16: Germiston | D16: 57.64 | E16: 9.33 | F16: 49 | G16: 23.92
C17: Grahamstown | D17: N/A | E17: N/A | F17: N/A | G17: N/A
C18: Hyde Park | D18: N/A | E18: N/A | F18: N/A | G18: N/A
C19: Johannesburg | D19: 65.06 | E19: 13.36 | F19: 56.06 | G19: 50.64
C20: Kimberley | D20: N/A | E20: N/A | F20: 29.99 | G20: 22.42
C21: Ladysmith | D21: N/A | E21: N/A | F21: 23.04 | G21: 15.87
C22: Midrand | D22: 75.7 | E22: 12.58 | F22: 58.88 | G22: 49.12
C23: Nelspruit | D23: N/A | E23: N/A | F23: 47.36 | G23: 41.71
C24: Paarl | D24: N/A | E24: N/A | F24: 37.89 | G24: 28.05
C25: Pietermaritzburg | D25: 32.1 | E25: 7.6 | F25: 38.59 | G25: 29.24
C26: Polokwane | D26: N/A | E26: N/A | F26: 25.5 | G26: 22.43
C27: Port Elizabeth | D27: N/A | E27: N/A | F27: 46.73 | G27: 42.49
C28: Pretoria | D28: 74.52 | E28: 10.55 | F28: 50.55 | G28: 43.84
C29: Rhodes | D29: N/A | E29: N/A | F29: N/A | G29: N/A
C30: Rivonia | D30: N/A | E30: N/A | F30: N/A | G30: N/A
C31: Rustenburg | D31: N/A | E31: N/A | F31: 35.77 | G31: 31.56
C32: Sandton | D32: 89.6 | E32: 11.86 | F32: 71.26 | G32: 62.32
C33: Sasolburg | D33: N/A | E33: N/A | F33: 35.1 | G33: 24.66
C34: Soweto | D34: N/A | E34: N/A | F34: 37.57 | G34: 23.44
C35: Stellenbosch | D35: N/A | E35: N/A | F35: 48.9 | G35: 46.39
C36: Vereeniging | D36: N/A | E36: N/A | F36: 36.28 | G36: 28.91
C37: Witbank | D37: N/A | E37: N/A | F37: N/A | G37: N/A
B38: Source: Speedtest, www.speedtest.net, accessed 25 April 2024
B39: a Megabits per second.
B40: N/A — Not available.

Sheet Int.speed.serv.prov.15-22
A2: Internet speeds by service providera, 2015-23
B4: — 2015— | D4: — 2017— | F4: — 2019— | H4: — 2021— | J4: — 2023b—
A5: Service provider | B5: Average download speed | C5: Average upload speed | D5: Average download speed | E5: Average upload speed | F5: Average download speed | G5: Average upload speed | H5: Average download speed | I5: Average upload speed | J5: Average download speed | K5: Average upload speed
B6: — Mbpsc—
A7: Cell C | B7: 4.13 | C7: 2.61 | D7: 14.1 | E7: 6.3 | F7: 17.19 | G7: 8.55 | H7: 20.82 | I7: 10.32 | J7: 19.2 | K7: 3.9
A8: MTN | B8: 10.54 | C8: 5.98 | D8: 22.2 | E8: 10.1 | F8: 32.9 | G8: 13 | H8: 64.29 | I8: 25.42 | J8: 40.3 | K8: 7.5
A9: Telkom | B9: 20.49 | C9: 2.61 | D9: 15.4 | E9: 4.4 | F9: 21.99 | G9: 4.9 | H9: 27.83 | I9: 7.24 | J9: 11.9 | K9: 3.8
A10: Vodacom | B10: 11.87 | C10: 2.14 | D10: 21.6 | E10: 8.3 | F10: 27.21 | G10: 11.1 | H10: 32.76 | I10: 10.94 | J10: 30.9 | K10: 6.3
A11: Rain | B11: N/A | C11: N/A | D11: N/A | E11: N/A | F11: N/A | G11: N/A | H11: N/A | I11: N/A | J11: N/A | K11: N/A
A12: Source: MyBroadband, www.mybroadband.co.za, accessed 23 March 2017; 26 April 2019; 16 August 2021; Opensignal, www.opensignal.com, accessed 21 June 2024
A13: a Recently, Internet Service Providers have been upgrading their connections from slower connections such as the Asymmetric Digital Subscriber Line — ADSL (a connection that functions over copper telephone wires) and VDSL (direct supplier-to-subscriber Internet cable) to fibre connections (also known as ultra-fast broadband). This may explain some of the huge leaps in Internet speeds reflected in the above table.
A14: b Data collection period: 1 May 2023-29 July 2023.
A15: c Megabits per second.
A16: N/A — Not available.

Sheet Internet costs.

Sheet ContractData.costs.24
B2: Costs
B4: Monthly dataa costs in megabytes (MB), by service provider, 2024
B6: —Vodacom— | D6: —MTN— | F6: —Cell C— | H6: —Telkom—
B7: MB | C7: R | D7: MB | E7: R | F7: MB | G7: R | H7: MB | I7: R
B8: 240 | C8: 29 | D8: 40 | E8: N/A | F8: 100 | G8: 19 | H8: 35+35 | I8: 7 | AE8: https://www.vodacom.co.za/vodacom/shopping/data/prepaid-data
B9: 420 | C9: 49 | D9: 100 | E9: N/A | F9: 300 | G9: 29 | H9: 75+75 | I9: 14
B10: 600 | C10: 69 | D10: 200 | E10: 29 | F10: 500 | G10: 35 | H10: 150+150 | I10: 29 | AE10: https://www.mtn.co.za/Pages/Reduced-bundles.aspx
B11: 1200 | C11: 85 | D11: 350 | E11: 49 | F11: 700 | G11: 45 | H11: 300+300 | I11: 49 | AE11: https://www.cellc.co.za/cellc/get-databundles
B12: 3600 | C12: 229 | D12: 500 | E12: 69 | F12: 1000 | G12: 65 | H12: 500+500 | I12: 69 | AE12: https://qr.telkom.co.za/qr_portal/top-up/data
B13: 7200 | C13: 349 | D13: 1000 | E13: 85 | F13: 1200 | G13: 69 | H13: 1 000+1 000 | I13: 79
B14: 12000 | C14: 469 | D14: 1500 | E14: 99 | F14: 2000 | G14: 85 | H14: 1 500+1 500 | I14: 89
B15: 36000 | C15: 699 | D15: 2000 | E15: 149 | F15: 3000 | G15: 99 | H15: 100 000 night surfer | I15: 129
B16: 50000 | C16: 799 | D16: 3000 | E16: 199 | F16: 4000 | G16: 149 | H16: 2 000+2 000 | I16: 146
B17: 100000 | C17: 999 | D17: 5000 | E17: 299 | F17: 6000 | G17: 199 | H17: N/A | I17: N/A
B18: N/A | C18: N/A | D18: 6000 | E18: 349 | F18: 8000 | G18: 249 | H18: N/A | I18: N/A
B19: N/A | C19: N/A | D19: 10000 | E19: 469 | F19: 12000 | G19: 299 | H19: N/A | I19: N/A
B20: N/A | C20: N/A | D20: 20000 | E20: 599 | F20: 10000 | G20: 469 | H20: N/A | I20: N/A
B21: N/A | C21: N/A | D21: 30000 | E21: 699 | F21: 30000 | G21: 489 | H21: N/A | I21: N/A
B22: N/A | C22: N/A | D22: 50000 | E22: 799 | F22: 40000 | G22: 489 | H22: N/A | I22: N/A
B23: N/A | C23: N/A | D23: 100000 | E23: 999 | F23: N/A | G23: N/A | H23: N/A | I23: N/A
B24: Source: Cell C, www.cellc.co.za/cellc/get-databundles, accessed 11 May 2024; Telkom, www.qr.telkom.co.za/qr portal/top-up/data, accessed 11 May 2024; Vodacom, www.vodacom.co.za/vodacom/shopping/data/prepaid data, accessed 11 May 2024; MTN, www.mtn.co.za/pages/reduced-bundles.aspx, accessed 11 May 2024
B26: a 1 024 megabytes are equivalent to 1 gigabyte (GB).
B28: N/A — Not available.

Sheet Cost of 1gb Africa.24
C2: Cost of 1 gigabyte (GB) of data bundles, selected African countriesab, 2024
C4: Country | D4: $ | E4: R
C5: Algeria | D5: 3.74 | E5: =D5*18.76 -> 70.1624
C6: Angola | D6: 1.69 | E6: =D6*18.76 -> 31.7044
C7: Botswana | D7: 4.44 | E7: 83.2944
C8: Burundi | D8: 3.1 | E8: 58.156
C9: Cameroon | D9: 3.31 | E9: 62.0956
C10: Central African Republic | D10: 8.28 | E10: 155.3328
C11: Congo (DRC) | D11: 5 | E11: 93.8
C12: Congo (Republic) | D12: 4.97 | E12: 93.2372
C13: Egypt | D13: N/A | E13: N/A
C14: Eritrea | D14: N/A | E14: N/A
C15: Eswatini | D15: 3.18 | E15: 59.6568
C16: Ethiopia | D16: 0.89 | E16: 16.6964
C17: Ghana | D17: 0.72 | E17: 13.5072
C18: Ivory Coast | D18: 2.98 | E18: 55.9048
C19: Kenya | D19: 1.34 | E19: =D19*18.76 -> 25.1384
C20: Lesotho | D20: 2.12 | E20: 39.7712
C21: Liberia | D21: 0.02 | E21: 0.3752
C22: Libya | D22: N/A | E22: N/A
C23: Madagascar | D23: 2.68 | E23: 50.2768
C24: Malawi | D24: 3.58 | E24: 67.1608
C25: Mauritius | D25: 2.54 | E25: 47.6504
C26: Morocco | D26: 5.04 | E26: 94.5504
C27: Mozambique | D27: 1.27 | E27: 23.8252
C28: Namibia | D28: 1.1 | E28: 20.636
C29: Nigeria | D29: 0.77 | E29: 14.4452
C30: Rwanda | D30: 1.59 | E30: =D30*18.76 -> 29.8284
C31: Senegal | D31: 3.31 | E31: 62.0956
C32: Somalia | D32: N/A | E32: N/A
C33: South Africa | D33: 3.44 | E33: 64.5344
C34: Sudan | D34: 1.44 | E34: 27.0144
C35: Tanzania | D35: 2.53 | E35: 47.4628
C36: Tunisia | D36: 1.45 | E36: 27.202
C37: Uganda | D37: 1.3 | E37: 24.388
C38: Zambia | D38: 1.18 | E38: =D38*18.76 -> 22.1368
C39: Zimbabwe | D39: 1.94 | E39: 36.3944
C40: Source: ResearchICTafrica, www.researchICTafrica.net, RIA Africa Mobile Pricing (RAMP) Indices Portal, accessed 30 April 2024
C41: a Q1 2024 figures.
C42: b Exchange rate at $1 to R18.76.
C43: N/A — Not available.

Sheet Devices

Sheet Devices used to access the inte
B2: Devices
B4: Devices useda to access the Internet, 2022-24
B6: Device | C6: 2022 | D6: 2023 | E6: 2024
B7: Mobile phone (all types) | C7: 0.96 | D7: 0.976 | E7: 0.987
B8: Laptop/desktop computer (any) | C8: 0.862 | D8: 0.788 | E8: 0.811
B9: Smart phone | C9: 0.956 | D9: 0.972 | E9: 0.983
B10: Feature phone | C10: 0.033 | D10: 0.038 | E10: 0.026
B11: Tablet device | C11: 0.276 | D11: 0.279 | E11: 0.297
B12: Personal laptop/desktop computer | C12: 0.814 | D12: 0.729 | E12: 0.728
B13: Work laptop/desktop computer | C13: 0.3 | D13: 0.294 | E13: 0.259
B14: Connected television | C14: 0.283 | D14: 0.299 | E14: 0.326
B15: Smart home device | C15: 0.088 | D15: 0.084 | E15: 0.127
B16: Games console | C16: 0.152 | D16: 0.16 | E16: 0.147
B17: Source: We are social, www.wearesocial.com, Digital 2022-3: South Africa, accessed 6 May 2023; Digital 2024 South Africa, accessed 7 May 2024
B18: a For example, in 2024, 98.3% of South Africans aged between 16 and 64 used their smart phones to access the Internet.

Sheet Digital device ownership,16-24
B2: Digital device ownershipa, 2016-24
B4: Deviceb | C4: 2016 | D4: 2017 | E4: 2018 | F4: 2019 | G4: 2020 | H4: 2021 | I4: 2022 | J4: 2023 | K4: 2024
B5: Mobile phone (all types) | C5: 0.92 | D5: 0.92 | E5: 0.95 | F5: 0.95 | G5: 0.94 | H5: 0.982 | I5: 0.991 | J5: 0.994 | K5: 0.994
B6: Smart phone | C6: 0.6 | D6: 0.69 | E6: 0.6 | F6: 0.6 | G6: 0.94 | H6: 0.98 | I6: 0.99 | J6: 0.994 | K6: 0.993
B7: Laptop/desktop Computer | C7: 0.18 | D7: 0.2 | E7: 0.24 | F7: 0.24 | G7: 0.76 | H7: 0.854 | I7: 0.859 | J7: 0.778 | K7: 0.8
B8: Tablet device | C8: 0.07 | D8: 0.1 | E8: 0.12 | F8: 0.12 | G8: 0.43 | H8: 0.432 | I8: 0.342 | J8: 0.341 | K8: 0.337
B9: TV streaming device | C9: 0.03 | D9: 0.03 | E9: 0.03 | F9: 0.03 | G9: N/A | H9: 0.167 | I9: 0.176 | J9: 0.187 | K9: 0.218
B10: E-reader device | C10: 0.01 | D10: 0.01 | E10: 0.01 | F10: 0.01 | G10: N/A | H10: N/A | I10: N/A | J10: N/A | K10: N/A
B11: Wearable tech device | C11: 0.01 | D11: 0.03 | E11: 0.02 | F11: 0.02 | G11: N/A | H11: N/A | I11: N/A | J11: N/A | K11: 0.266
B12: Source: We are social, www.wearesocial.com, Digital 2016-23: South Africa, accessed May 2023; Digital 2024 South Africa, accessed 7 May 2024
B13: a Ownership by people aged 16 to 64.
B14: b For example, in 2024, 33.7% of South Africans aged between 16 and 64 owned a tablet device.
B15: N/A — Not available.

Sheet Social media

Sheet Social media subsc 19-24
B2: Social media
B4: Social media network subscribers in South Africa, 2019-24
B6: Date | C6: Facebook | D6: Pinterest | E6: Twitter/X | F6: YouTube | G6: Instagram | H6: Reddit | I6: LinkedIn
C7: —Proportion—
B8: 2019-01-01 | C8: 46.1 | D8: 39.72 | E8: 9.12 | F8: 1.83 | G8: 1.65 | H8: — | I8: 0.36
B9: 2019-03-01 | C9: 40.62 | D9: 45.78 | E9: 8.22 | F9: 2.22 | G9: 1.85 | H9: — | I9: 0.24
B10: 2019-06-01 | C10: 43.79 | D10: 43.49 | E10: 7.85 | F10: 2.58 | G10: 1.13 | H10: 0.16 | I10: 0.22
B11: 2019-09-01 | C11: 46.92 | D11: 37.22 | E11: 9.82 | F11: 2.22 | G11: 2.93 | H11: 0.09 | I11: 0.23
B12: 2019-12-01 | C12: 43.98 | D12: 28.73 | E12: 16.54 | F12: 1.97 | G12: 8.16 | H12: 0.14 | I12: 0.13
B13: 2020-01-01 | C13: 42.87 | D13: 27.74 | E13: 17.95 | F13: 1.93 | G13: 8.87 | H13: 0.15 | I13: 0.16
B14: 2020-03-01 | C14: 41.88 | D14: 24.01 | E14: 19.12 | F14: 2.9 | G14: 11.39 | H14: 0.11 | I14: 0.22
B15: 2020-06-01 | C15: 44.49 | D15: 40.06 | E15: 9.4 | F15: 3.04 | G15: 1.52 | H15: 0.31 | I15: 0.24
B16: 2020-09-01 | C16: 56.91 | D16: 27.91 | E16: 9.33 | F16: 2.76 | G16: 1.75 | H16: 0.2 | I16: —
B17: 2020-12-01 | C17: 38.76 | D17: 42.81 | E17: 12.64 | F17: 3.75 | G17: 1.07 | H17: 0.27 | I17: —
B18: 2021-01-21 | C18: 41.39 | D18: 39.98 | E18: 12.14 | F18: 3.24 | G18: 2.23 | H18: 0.27 | I18: 0.31
B19: 2021-03-21 | C19: 45.97 | D19: 32.73 | E19: 12.81 | F19: 3.74 | G19: 3.46 | H19: 0.39 | I19: 0.36
B20: 2021-06-21 | C20: 56.59 | D20: 19.27 | E20: 11.72 | F20: 3.94 | G20: 5.16 | H20: 0.54 | I20: 0.46
B21: 2021-09-21 | C21: 60.1 | D21: 16.93 | E21: 10.77 | F21: 3.84 | G21: 4.95 | H21: 0.42 | I21: —
B22: 2021-12-21 | C22: 61.29 | D22: 13 | E22: 13.41 | F22: 4.36 | G22: 6.1 | H22: 0.56 | I22: —
B23: 2022-01-21 | C23: 68.41 | D23: 11.58 | E23: 9.1 | F23: 3.17 | G23: 5.93 | H23: 0.54 | I23: —
B24: 2022-03-21 | C24: 71.82 | D24: 9.49 | E24: 8.34 | F24: 3 | G24: 6.13 | H24: 0.44 | I24: —
B25: 2022-06-21 | C25: 69.57 | D25: 11.26 | E25: 7.79 | F25: 3.33 | G25: 6.6 | H25: 0.6 | I25: —
B26: 2022-09-01 | C26: 63.64 | D26: 12.59 | E26: 8.75 | F26: 3.91 | G26: 9.49 | H26: 0.55 | I26: 0.88
B27: 2022-12-01 | C27: 64.81 | D27: 9.92 | E27: 8.74 | F27: 2.92 | G27: 12 | H27: 0.63 | I27: 0.58
B28: 2023-01-01 | C28: 64.38 | D28: 7.98 | E28: 16.96 | F28: 2.47 | G28: 7.05 | H28: 0.28 | I28: 0.62
B29: 2023-03-01 | C29: 68.84 | D29: 8.33 | E29: 8.89 | F29: 2.57 | G29: 9.91 | H29: 0.26 | I29: 0.91
B30: 2023-04-01 | C30: 68.09 | D30: 8.73 | E30: 8.56 | F30: 2.66 | G30: 10.31 | H30: — | I30: 0.85
B31: 2023-05-01 | C31: 67.56 | D31: 9.16 | E31: 8.96 | F31: 2.57 | G31: 9.89 | H31: — | I31: 0.87
B32: 2023-06-01 | C32: 61.81 | D32: 9.38 | E32: 11.4 | F32: 2.64 | G32: 12.9 | H32: — | I32: 0.88
B33: 2023-07-01 | C33: 62.92 | D33: 11.23 | E33: 6.68 | F33: 3.33 | G33: 14.16 | H33: — | I33: 0.81
B34: 2023-08-01 | C34: 66.49 | D34: 11.19 | E34: 6.05 | F34: 3.31 | G34: 11.43 | H34: — | I34: 0.65
B35: 2023-09-01 | C35: 67.27 | D35: 11.16 | E35: 6.15 | F35: 2.93 | G35: 11.27 | H35: — | I35: 0.48
B36: 2023-10-01 | C36: 68.44 | D36: 11.76 | E36: 5.38 | F36: 3.03 | G36: 10.38 | H36: — | I36: 0.37
B37: 2023-11-01 | C37: 65.84 | D37: 14.58 | E37: 5.4 | F37: 2.42 | G37: 10.58 | H37: — | I37: 0.4
B38: 2023-12-01 | C38: 68.67 | D38: 12.62 | E38: 5.07 | F38: 2.67 | G38: 9.65 | H38: — | I38: 0.55
B39: 2024-01-01 | C39: 70.74 | D39: 11.96 | E39: 5.78 | F39: 2.58 | G39: 7.67 | H39: — | I39: 0.6
B40: 2024-02-01 | C40: 68.92 | D40: 11.51 | E40: 4.55 | F40: 2.22 | G40: 8.35 | H40: — | I40: 3.71
B41: 2024-03-01 | C41: 73.46 | D41: 9.69 | E41: 4.12 | F41: 2.36 | G41: 7.52 | H41: — | I41: 2.08
B42: 2024-04-01 | C42: 69.02 | D42: 11.79 | E42: 5.26 | F42: 2.78 | G42: 8.09 | H42: — | I42: 1.96
B43: Source: Statscounter Globalstats, www.gs.statcounter.com, Social media stats South Africa (January 2019-March 2023), accessed 23 April 2023; Social media stats South Africa (April 2023-April 2024), accessed 6 May 2024

Sheet Globalsocialmediasubscr.16.24
B2: Active users of key global social media platforms, 2016-24
D4: —Active users (millions)—
B5: Social media platform | C5: Headquarters | D5: 2016 | E5: 2019 | F5: 2020 | G5: 2021a | H5: 2022b | I5: 2023c | J5: 2024d
B6: Baidu Tieba | C6: Beijing, China | D6: 300 | E6: 300 | F6: N/A | G6: N/A | H6: N/A | I6: N/A | J6: N/A
B7: Skype | C7: Luxembourg City, Luxembourg | D7: 300 | E7: 300 | F7: N/A | G7: N/A | H7: N/A | I7: N/A | J7: N/A
B8: Line | C8: Tokyo, Japan | D8: 217 | E8: 194 | F8: N/A | G8: N/A | H8: N/A | I8: N/A | J8: N/A
B9: Viber | C9: Boston, United States | D9: 100 | E9: 260 | F9: N/A | G9: N/A | H9: N/A | I9: N/A | J9: N/A
B10: Douban | C10: Beijing, China | D10: N/A | E10: 320 | F10: N/A | G10: N/A | H10: N/A | I10: N/A | J10: N/A
B11: Facebook | C11: California, United States | D11: 1871 | E11: 2271 | F11: 2449 | G11: 2740 | H11: 2910 | I11: 2958 | J11: 3049
B12: YouTube | C12: California, United States | D12: 1000 | E12: 1900 | F12: 2000 | G12: 2291 | H12: 2562 | I12: 2514 | J12: 2491
B13: WhatsApp | C13: California, United States | D13: 1000 | E13: 1500 | F13: 1600 | G13: 2000 | H13: 2000 | I13: 2000 | J13: 2000
B14: Messenger (Facebook) | C14: California, United States | D14: 1000 | E14: 1300 | F14: 1300 | G14: 1300 | H14: 988 | I14: 931 | J14: 979
B15: WeChat | C15: Shenzhen, China | D15: 846 | E15: 1083 | F15: 1151 | G15: 1210 | H15: 1263 | I15: 1309 | J15: 1336
B16: Instagram | C16: California, United States | D16: 600 | E16: 1000 | F16: 1000 | G16: 1221 | H16: 1478 | I16: 2000 | J16: 2000
B17: TikTok | C17: Beijing, China | D17: N/A | E17: N/A | F17: N/A | G17: N/A | H17: 1000 | I17: 1051 | J17: 1562
B18: QQ | C18: Shenzhen, China | D18: 877 | E18: 803 | F18: 731 | G18: 617 | H18: 574 | I18: 574 | J18: 558
B19: LinkedIn | C19: California, United States | D19: 106 | E19: 303 | F19: 663.3 | G19: N/A | H19: N/A | I19: N/A | J19: N/A
B20: Qzone | C20: Shenzhen, China | D20: 632 | E20: 531 | F20: 517 | G20: N/A | H20: N/A | I20: N/A | J20: N/A
B21: Sina Weibo | C21: Shanghai, China | D21: 297 | E21: 446 | F21: 497 | G21: 511 | H21: 573 | I21: 584 | J21: N/A
B22: Reddit | C22: California, United States | D22: N/A | E22: 330 | F22: 430 | G22: 430 | H22: 430 | I22: N/A | J22: N/A
B23: Snapchat | C23: California, United States | D23: 300 | E23: 287 | F23: 382 | G23: 498 | H23: 557 | I23: 635 | J23: 750
B24: Twitter/X | C24: California, United States | D24: 317 | E24: 326 | F24: 340 | G24: 353 | H24: 436 | I24: 556 | J24: 619
B25: Telegram | C25: Dubai, United Arab Emirates | D25: N/A | E25: N/A | F25: N/A | G25: 500 | H25: 550 | I25: 700 | J25: 800
B26: Pinterest | C26: California, United States | D26: 150 | E26: 250 | F26: 169 | G26: 442 | H26: 444 | I26: 445 | J26: 482
B27: Source: We Are Social, www.wearesocial.com, Digital in 2017: Global Overview: A Collection of Internet, Social Media and Mobile Data from Around the World, accessed 2 May 2017; Digital in 2018: Essential insights into internet, social media, mobile and ecommerce use around the world, accessed 12 April 2018; Digital 2019: Global Digital Yearbook, accessed 10 April 2019; Digital 2020: Global Digital Yearbook, accessed 7 July 2020; Digital 2021: Global Digital Yearbook, accessed 18 July 2021; Digital 2022: Global Overview Report, accessed 24 May 2022; Digital 2023: Global overview report, accessed 24 April 2023; Digital 2024: Global overview report, accessed 9 May 2024
B28: a As at July 2021.
B29: b As at January 2022.
B30: c As at January 2023.
B31: d As at January 2024.
B32: N/A — Not available.

Sheet Fb, inst, whatsap, messe users
D2: Daily Active People (DAP) and Monthly Active People (MAP) of Facebook, Instagram, Messenger, and/or WhatsApp, 2019-22
D4: Date | E4: Daily active people (DAP) worldwide (billions) | F4: Monthly active people (MAP) worldwide (billions)
D5: 2019-12-31 | E5: 2.26 | F5: 2.89
D6: 2020-03-31 | E6: 2.36 | F6: 2.99
D7: 2020-06-30 | E7: 2.47 | F7: 3.14
D8: 2020-09-30 | E8: 2.54 | F8: 3.21
D9: 2020-12-31 | E9: 2.6 | F9: 3.3
D10: 2021-03-31 | E10: 2.72 | F10: 3.45
D11: 2021-06-30 | E11: 2.76 | F11: 3.51
D12: 2021-09-30 | E12: 2.81 | F12: 3.58
D13: 2021-12-31 | E13: 2.82 | F13: 3.59
D14: 2022-03-31 | E14: 2.87 | F14: 3.64
D15: 2022-06-30 | E15: 2.88 | F15: 3.65
D16: 2022-09-30 | E16: 2.93 | F16: 3.71
D17: 2022-12-31 | E17: 2.96 | F17: 3.74
D18: Source: Meta, 2021 Annual report and form 10k, accessed 5 May 2023; 2022 Annual report and form 10k, accessed 6 May 2024
D20: Daily Active People (DAP) refers to a registered and logged-in user of Facebook, Instagram, Messenger, and/or WhatsApp who visited at least one of these platforms through a mobile device application or using a web or mobile browser on a given day.
D22: Monthly Active People (MAP) refers to a registered and logged-in user of Facebook, Instagram, Messenger, and/or WhatsApp who visited at least one of these platforms through a mobile device application or using a web or mobile browser in the last 30 days as of the date of measurement.

Sheet Global fb user analysis.16-23
B2: Facebook user activity (global), 2016-23
B4: User activity | C4: 2016 | D4: 2018 | E4: 2020 | F4: 2022 | G4: 2023
B5: Users accessing Facebook via mobile devicesa | C5: 0.87 | D5: 0.96 | E5: 0.983 | F5: — | G5: —
B6: Users accessing Facebook everyday | C6: 0.55 | D6: — | E6: — | F6: — | G6: —
B7: Male Facebook users | C7: 0.56 | D7: 0.57 | E7: 0.56 | F7: 0.45 | G7: 0.563
B8: Female Facebook users | C8: 0.44 | D8: 0.43 | E8: 0.44 | F8: 0.42 | G8: 0.437
B9: Total active users | C9: 1.87bn | D9: 2.30bn | E9: 2.85bn | F9: 2.94bn | G9: 2.96bn
B10: Source: We Are Social, www.wearesocial.com, Digital in 2017: Global Overview: A Collection of Internet, Social Media and Mobile Data from Around the World, accessed 2 May 2017; Digital in 2018: Essential insights into internet, social media, mobile and ecommerce use around the world, accessed 12 April 2018; Digital 2020: Global Digital Yearbook, accessed 18 September 2020; Digital 2021: Global Digital Yearbook, accessed 27 July 2021; Digital 2022: July Global statshot report, accessed 30 August 2022; Wearesocial, Facebook global audience advertising data, accessed 5 May 2023
B11: a Smartphones and tablets.

Sheet Twitter.newspaper.followers.24
B2: News account followers on X, 2016-24
C4: News account on Twitter/Xa | D4: —Followers— | J4: Change 2016-24
D5: 2016b | E5: 2018c | F5: 2020d | G5: 2022e | H5: 2023f | I5: 2024g
C6: News24 | D6: 1760000 | E6: 2620000 | F6: 3600000 | G6: 4971423 | H6: 5396508 | I6: 6020941 | J6: =(I6-D6)/D6 -> 2.420989205
C7: City Press | D7: 722000 | E7: 1040000 | F7: 1200000 | G7: 1452986 | H7: 1511697 | I7: 1555371 | J7: =(I7-D7)/D7 -> 1.154253463
C8: TimesLIVE | D8: 634000 | E8: 994000 | F8: 1400000 | G8: 1880774 | H8: 1997210 | I8: 2102555 | J8: 2.316332808
C9: Mail & Guardian | D9: 157000 | E9: 902000 | F9: 1070000 | G9: 1138116 | H9: 1157784 | I9: 1168272 | J9: 6.44122293
C10: SowetanLIVE | D10: 391000 | E10: 681000 | F10: 951000 | G10: 1116778 | H10: 1161385 | I10: 1189776 | J10: 2.042905371
C11: Soccer Laduma | D11: 328000 | E11: 562000 | F11: 845000 | G11: 1036486 | H11: 1065624 | I11: 1104762 | J11: 2.368176829
C12: The New Age | D12: 260000 | E12: 349000 | F12: — | G12: — | H12: — | I12: — | J12: —
C13: Sunday Times | D13: 207000 | E13: 339000 | F13: 554000 | G13: 777198 | H13: 847231 | I13: 886099 | J13: 3.280671498
C14: Beeld (Afrikaans) | D14: 157000 | E14: 279000 | F14: 277400 | G14: 276808 | H14: 276808 | I14: 276738 | J14: 0.7626624204
C15: Independent Online (IOL) News | D15: 186000 | E15: 261000 | F15: 452000 | G15: 622070 | H15: 659824 | I15: 688535 | J15: 2.701801075
C16: The Mercury | D16: 92700 | E16: 189000 | F16: 221000 | G16: 225513 | H16: 225473 | I16: 225070 | J16: 1.42793959
C17: Volksblad (Afrikaans) | D17: 69500 | E17: 205000 | F17: 215000 | G17: 213390 | H17: 213416 | I17: 213213 | J17: 2.06781295
C18: Sunday World | D18: 90800 | E18: 120000 | F18: 148900 | G18: 167526 | H18: 174165 | I18: 182579 | J18: 1.010781938
C19: Rapport (Afrikaans) | D19: 74100 | E19: 93200 | F19: 99300 | G19: 101448 | H19: 102590 | I19: 103675 | J19: 0.399122807
C20: Daily News | D20: 4452 | E20: 6926 | F20: 10700 | G20: 18721 | H20: 19042 | I20: 19035 | J20: 3.275606469
C21: Daily Sun | D21: 60200 | E21: 83200 | F21: 119300 | G21: 135962 | H21: 137945 | I21: 148397 | J21: 1.465066445
C22: The Witness | D22: 47900 | E22: 62600 | F22: 65400 | G22: 71945 | H22: 72159 | I22: 72410 | J22: 0.511691023
C23: Die Burger (Afrikaans) | D23: 45500 | E23: 60000 | F23: 61200 | G23: 62664 | H23: 63589 | I23: 64611 | J23: 0.420021978
C24: Sunday Sun | D24: 29800 | E24: 49900 | F24: 68400 | G24: — | H24: — | I24: — | J24: —
C25: The Citizen | D25: 20900 | E25: 53800 | F25: 159100 | G25: 222409 | H25: 245029 | I25: 262906 | J25: 11.57923445
C26: Daily Dispatch | D26: 18900 | E26: 42200 | F26: 69700 | G26: 84765 | H26: 86562 | I26: 93358 | J26: 3.93957672
C27: Cape Argus | D27: 24400 | E27: 33800 | F27: 43800 | G27: 48941 | H27: 50361 | I27: 50702 | J27: 1.07795082
C28: Herald Live | D28: — | E28: 38400 | F28: 53900 | G28: 63674 | H28: 65833 | I28: 68553 | J28: —
C29: Cape Times | D29: 20600 | E29: 29100 | F29: 36000 | G29: 40814 | H29: 42671 | I29: 47266 | J29: 1.294466019
C30: The Sunday Independent | D30: 17400 | E30: 27200 | F30: 35000 | G30: 37632 | H30: 38637 | I30: 38996 | J30: 1.241149425
C31: Pretoria News | D31: 8510 | E31: 14900 | F31: 29400 | G31: 46954 | H31: 49572 | I31: 50369 | J31: 4.91880141
C32: Sunday Tribune | D32: 3734 | E32: 7469 | F32: 10700 | G32: 12227 | H32: 12530 | I32: 12603 | J32: 2.375200857
C33: Daily Voice | D33: 1656 | E33: 4493 | F33: 9300 | G33: 11523 | H33: 12147 | I33: 12478 | J33: 6.535024155
B34: Source: X, www.x.com, accessed 27 March 2017; 12 April 2018, 21 October 2020, 22 July 2021, 30 August 2022; 24 April 2023; 7 May 2024
B35: a Daily and weekly newspapers are included in the list.
B36: b As at 14 May 2016.
B37: c As at 12 April 2018.
B38: d | C38: As at 21 October 2020.
B39: e | C39: As at 30 August 2022.
B40: f | C40: As at 24 April 2023.
B41: g | C41: As at 7 May 2024.

Sheet Macros.
A2: A | B2: HEAD 1 | C2: HELVETICA NEUE 21 pt
A4: B | B4: HEAD 2 | C4: Helvetica Neue 18 pt
A6: C | B6: HEAD 3 | C6: Helvetica Neue 16 pt
A8: D | B8: HEAD 4 | C8: Helvetica Neue 14 pt
A10: E | B10: HEAD 5 | C10: Lucia 12 pt
A12: F | B12: HEAD 6 | C12: Helvetica Neue 13 pt
A14: G | B14: HEAD 7 | C14: Helvetica Neue 12 pt
A16: H | B16: HEAD 8 | C16: Helvetica Neue 11 pt | D16: Source, Footnote, Text

Sheet Macros
A2: A | B2: HEAD 1 | C2: HELVETICA NEUE 21 pt
A4: B | B4: HEAD 2 | C4: Helvetica Neue 18 pt
A6: C | B6: HEAD 3 | C6: Helvetica Neue 16 pt
A8: D | B8: HEAD 4 | C8: Helvetica Neue 14 pt
A10: E | B10: HEAD 5 | C10: Lucia 12 pt
A12: F | B12: HEAD 6 | C12: Helvetica Neue 13 pt
A14: G | B14: HEAD 7 | C14: Helvetica Neue 12 pt
A16: H | B16: HEAD 8 | C16: Helvetica Neue 11 pt | D16: Source, Footnote, Text
